Workbook

Sheet Priorytety szkoleniowe
A1: Szkolenia planowane
D2: Jednostka organizacyjna | G2: Grupa tematyczna: Prawo | J2: Grupa tematyczna: Finanse | M2: Grupa tematyczna 3
A3: Lp. | B3: Pracownik | C3: Członek korpusu służby cywilnej tak/nie | D3: Dział | E3: Wydział | F3: Departament | G3: Prawo administracyjne | H3: Prawo finansów publicznych | I3: Prawo zamówień publicznych | J3: Audyt | K3: Controling | L3: Ekonomia | M3: Tematyka 1 | N3: Tamatyka 2 | O3: Tematyka 3
A4: 1 | B4: Jan Kowalski | C4: TRUE | G4: 3 | J4: 1 | K4: 3 | M4: 2
A5: 2 | B5: Maria Nowak | C5: TRUE | H5: 2 | I5: 1 | J5: 3 | L5: 2 | M5: 3 | N5: 2
A6: 3 | B6: Piotr Krasinski | C6: TRUE | G6: 3 | I6: 2 | J6: 3 | M6: 2 | O6: 2
A7: 4 | C7: FALSE
A8: 5 | C8: FALSE
A10: Szkolenia ad hoc
D11: Jednostka organizacyjna | G11: Grupa tematyczna: Prawo | J11: Grupa tematyczna: Finanse | M11: Grupa tematyczna 3
A12: Lp. | B12: Pracownik | C12: Członek korpusu służby cywilnej tak/nie | D12: Dział | E12: Wydział | F12: Departament | G12: Prawo administracyjne | H12: Prawo finansów publicznych | I12: Prawo zamówień publicznych | J12: Audyt | K12: Controling | L12: Ekonomia | M12: Tematyka 1 | N12: Tamatyka 2 | O12: Tematyka 3
A13: 1 | B13: Jan Kowalski | C13: =IF(C4=TRUE,"tak","nie") -> tak | G13: 1 | J13: 1
A14: 2 | B14: Maria Nowak | C14: =IF(C5=TRUE,"tak","nie") -> tak | G14: 1
A15: 3 | B15: Piotr Krasinski | C15: =IF(C6=TRUE,"tak","nie") -> tak
A16: 4 | C16: =IF(C7=TRUE,"tak","nie") -> nie
A17: 5 | C17: =IF(C8=TRUE,"tak","nie") -> nie

Sheet Liczba dni szkoleń
A1: Szkolenia planowane
C2: Jednostka organizacyjna | F2: Grupa tematyczna: Prawo | I2: Grupa tematyczna: Finanse | L2: Grupa tematyczna 3
A3: Lp. | B3: Pracownik | C3: Dział | D3: Wydział | E3: Departament | F3: Prawo administracyjne | G3: Prawo finansów publicznych | H3: Prawo zamówień publicznych | I3: Audyt | J3: Controling | K3: Ekonomia | L3: Tematyka 1 | M3: Tematyka 2 | N3: Tematyka 3
A4: 1 | B4: Jan Kowalski | F4: 2 | G4: 4 | H4: 5 | I4: 3 | J4: 1 | K4: 5 | L4: 6 | M4: 3 | N4: 10
A5: 2 | B5: Maria Nowak | F5: 2 | G5: 4 | H5: 5 | I5: 3 | J5: 1 | K5: 5 | L5: 6 | M5: 3 | N5: 10
A6: 3 | B6: Piotr Krasinski | F6: 2 | G6: 4 | H6: 5 | I6: 3 | J6: 1 | K6: 5 | L6: 6 | M6: 3 | N6: 10
A7: 4
A8: 5
A10: Szkolenia ad hoc
C11: Jednostka organizacyjna | F11: Grupa tematyczna: Prawo | I11: Grupa tematyczna: Finanse | L11: Grupa tematyczna 3
A12: Lp. | B12: Pracownik | C12: Dział | D12: Wydział | E12: Departament | F12: Prawo administracyjne | G12: Prawo finansów publicznych | H12: Prawo zamówień publicznych | I12: Audyt | J12: Controling | K12: Ekonomia | L12: Tematyka 1 | M12: Tamatyka 2 | N12: Tematyka 3
A13: 1 | B13: Jan Kowalski | F13: 1 | I13: 3
A14: 2 | B14: Maria Nowak | F14: 1
A15: 3 | B15: Piotr Krasinski
A16: 4
A17: 5

Sheet Ceny szkoleń
A1: Szkolenia planowane
F2: Grupa tematyczna: Prawo | I2: Grupa tematyczna: Finanse | L2: Grupa tematyczna 3
A3: Lp. | B3: Podtyp szkolenia | C3: Sposób wyliczenia ceny | F3: Prawo administracyjne | G3: Prawo finansów publicznych | H3: Prawo zamówień publicznych | I3: Audyt | J3: Controling | K3: Ekonomia | L3: Tematyka 1 | M3: Tamatyka 2 | N3: Tematyka 3
A4: 1 | B4: otwarte | C4: cena za osobodzień | F4: 1000 | G4: 1000 | H4: 1000 | I4: 200 | J4: 500 | K4: 200 | L4: 1000 | M4: 800 | N4: 800
A5: 2 | B5: zewnętrzne zamknięte | C5: cena za osobodzień | F5: 500 | G5: 500 | H5: 500 | I5: 80 | J5: 300 | K5: 80 | L5: 600 | M5: 500 | N5: 500
A6: 3 | B6: wewnętrzne zamknięte | C6: cena za osobodzień | F6: 250 | G6: 250 | H6: 200 | I6: 20 | J6: 200 | K6: 20 | L6: 50 | M6: 50 | N6: 50
B8: Udział pracowników w finansowaniu | C8: % | F8: 0 | G8: 0 | H8: 0 | I8: 0.3 | J8: 0 | K8: 0 | L8: 0 | M8: 0 | N8: 0
A10: Szkolenia ad hoc
F11: Grupa tematyczna: Prawo | I11: Grupa tematyczna: Finanse | L11: Grupa tematyczna 3
A12: Lp. | B12: Pracownik | F12: Prawo administracyjne | G12: Prawo finansów publicznych | H12: Prawo zamówień publicznych | I12: Audyt | J12: Controling | K12: Ekonomia | L12: Tematyka 1 | M12: Tamatyka 2 | N12: Tematyka 3
A13: 1 | B13: Jan Kowalski | C13: cena za osobodzień | F13: 200 | I13: 500
A14: 2 | B14: Maria Nowak | C14: cena za osobodzień | F14: 250
A15: 3 | B15: Piotr Krasinski | C15: cena za osobodzień
A16: 4 | C16: cena za osobodzień
A17: 5 | C17: cena za osobodzień

Sheet Planowanie szkoleń
D1: Jednostka organizacyjna | G1: Grupa tematyczna: Prawo | J1: Grupa tematyczna: Finanse | M1: Grupa tematyczna 3
A2: Lp. | B2: Pracownik | C2: Członek korpusu służby cywilnej tak/nie | D2: Dział | E2: Wydział | F2: Departament | G2: Prawo administracyjne | H2: Prawo finansów publicznych | I2: Prawo zamówień publicznych | J2: Audyt | K2: Controling | L2: Ekonomia | M2: Tematyka 1 | N2: Tamatyka 2 | O2: Tematyka 3 | P2: Suma | R2: Policz szkolenia z priorytetem | V2: 1
A3: Liczba osób na szkoleniach | R3: 1 | V3: 2
A4: 1 | B4: Jan Kowalski | C4: ='Priorytety szkoleniowe'!C13 -> tak | G4: =IF('Priorytety szkoleniowe'!G4=0,0,IF($R$3<='Priorytety szkoleniowe'!G4,1,0)) -> 1 | H4: =IF('Priorytety szkoleniowe'!H4=0,0,IF($R$3<='Priorytety szkoleniowe'!H4,1,0)) -> 0 | I4: =IF('Priorytety szkoleniowe'!I4=0,0,IF($R$3<='Priorytety szkoleniowe'!I4,1,0)) -> 0 | J4: =IF('Priorytety szkoleniowe'!J4=0,0,IF($R$3<='Priorytety szkoleniowe'!J4,1,0)) -> 1 | K4: =IF('Priorytety szkoleniowe'!K4=0,0,IF($R$3<='Priorytety szkoleniowe'!K4,1,0)) -> 1 | L4: =IF('Priorytety szkoleniowe'!L4=0,0,IF($R$3<='Priorytety szkoleniowe'!L4,1,0)) -> 0 | M4: =IF('Priorytety szkoleniowe'!M4=0,0,IF($R$3<='Priorytety szkoleniowe'!M4,1,0)) -> 1 | N4: =IF('Priorytety szkoleniowe'!N4=0,0,IF($R$3<='Priorytety szkoleniowe'!N4,1,0)) -> 0 | O4: =IF('Priorytety szkoleniowe'!O4=0,0,IF($R$3<='Priorytety szkoleniowe'!O4,1,0)) -> 0 | P4: =SUM(G4:O4) -> 4 | V4: 3
A5: 2 | B5: Maria Nowak | C5: ='Priorytety szkoleniowe'!C14 -> tak | G5: =IF('Priorytety szkoleniowe'!G5=0,0,IF($R$3<='Priorytety szkoleniowe'!G5,1,0)) -> 0 | H5: =IF('Priorytety szkoleniowe'!H5=0,0,IF($R$3<='Priorytety szkoleniowe'!H5,1,0)) -> 1 | I5: =IF('Priorytety szkoleniowe'!I5=0,0,IF($R$3<='Priorytety szkoleniowe'!I5,1,0)) -> 1 | J5: =IF('Priorytety szkoleniowe'!J5=0,0,IF($R$3<='Priorytety szkoleniowe'!J5,1,0)) -> 1 | K5: =IF('Priorytety szkoleniowe'!K5=0,0,IF($R$3<='Priorytety szkoleniowe'!K5,1,0)) -> 0 | L5: =IF('Priorytety szkoleniowe'!L5=0,0,IF($R$3<='Priorytety szkoleniowe'!L5,1,0)) -> 1 | M5: =IF('Priorytety szkoleniowe'!M5=0,0,IF($R$3<='Priorytety szkoleniowe'!M5,1,0)) -> 1 | N5: =IF('Priorytety szkoleniowe'!N5=0,0,IF($R$3<='Priorytety szkoleniowe'!N5,1,0)) -> 1 | O5: =IF('Priorytety szkoleniowe'!O5=0,0,IF($R$3<='Priorytety szkoleniowe'!O5,1,0)) -> 0 | P5: =SUM(G5:O5) -> 6
A6: 3 | B6: Piotr Krasinski | C6: ='Priorytety szkoleniowe'!C15 -> tak | G6: =IF('Priorytety szkoleniowe'!G6=0,0,IF($R$3<='Priorytety szkoleniowe'!G6,1,0)) -> 1 | H6: =IF('Priorytety szkoleniowe'!H6=0,0,IF($R$3<='Priorytety szkoleniowe'!H6,1,0)) -> 0 | I6: =IF('Priorytety szkoleniowe'!I6=0,0,IF($R$3<='Priorytety szkoleniowe'!I6,1,0)) -> 1 | J6: =IF('Priorytety szkoleniowe'!J6=0,0,IF($R$3<='Priorytety szkoleniowe'!J6,1,0)) -> 1 | K6: =IF('Priorytety szkoleniowe'!K6=0,0,IF($R$3<='Priorytety szkoleniowe'!K6,1,0)) -> 0 | L6: =IF('Priorytety szkoleniowe'!L6=0,0,IF($R$3<='Priorytety szkoleniowe'!L6,1,0)) -> 0 | M6: =IF('Priorytety szkoleniowe'!M6=0,0,IF($R$3<='Priorytety szkoleniowe'!M6,1,0)) -> 1 | N6: =IF('Priorytety szkoleniowe'!N6=0,0,IF($R$3<='Priorytety szkoleniowe'!N6,1,0)) -> 0 | O6: =IF('Priorytety szkoleniowe'!O6=0,0,IF($R$3<='Priorytety szkoleniowe'!O6,1,0)) -> 1 | P6: =SUM(G6:O6) -> 5
A7: 4 | C7: ='Priorytety szkoleniowe'!C16 -> nie | G7: =IF('Priorytety szkoleniowe'!G7=0,0,IF($R$3<='Priorytety szkoleniowe'!G7,1,0)) -> 0 | H7: =IF('Priorytety szkoleniowe'!H7=0,0,IF($R$3<='Priorytety szkoleniowe'!H7,1,0)) -> 0 | I7: =IF('Priorytety szkoleniowe'!I7=0,0,IF($R$3<='Priorytety szkoleniowe'!I7,1,0)) -> 0 | J7: =IF('Priorytety szkoleniowe'!J7=0,0,IF($R$3<='Priorytety szkoleniowe'!J7,1,0)) -> 0 | K7: =IF('Priorytety szkoleniowe'!K7=0,0,IF($R$3<='Priorytety szkoleniowe'!K7,1,0)) -> 0 | L7: =IF('Priorytety szkoleniowe'!L7=0,0,IF($R$3<='Priorytety szkoleniowe'!L7,1,0)) -> 0 | M7: =IF('Priorytety szkoleniowe'!M7=0,0,IF($R$3<='Priorytety szkoleniowe'!M7,1,0)) -> 0 | N7: =IF('Priorytety szkoleniowe'!N7=0,0,IF($R$3<='Priorytety szkoleniowe'!N7,1,0)) -> 0 | O7: =IF('Priorytety szkoleniowe'!O7=0,0,IF($R$3<='Priorytety szkoleniowe'!O7,1,0)) -> 0 | P7: =SUM(G7:O7) -> 0
A8: 5 | C8: ='Priorytety szkoleniowe'!C17 -> nie | G8: =IF('Priorytety szkoleniowe'!G8=0,0,IF($R$3<='Priorytety szkoleniowe'!G8,1,0)) -> 0 | H8: =IF('Priorytety szkoleniowe'!H8=0,0,IF($R$3<='Priorytety szkoleniowe'!H8,1,0)) -> 0 | I8: =IF('Priorytety szkoleniowe'!I8=0,0,IF($R$3<='Priorytety szkoleniowe'!I8,1,0)) -> 0 | J8: =IF('Priorytety szkoleniowe'!J8=0,0,IF($R$3<='Priorytety szkoleniowe'!J8,1,0)) -> 0 | K8: =IF('Priorytety szkoleniowe'!K8=0,0,IF($R$3<='Priorytety szkoleniowe'!K8,1,0)) -> 0 | L8: =IF('Priorytety szkoleniowe'!L8=0,0,IF($R$3<='Priorytety szkoleniowe'!L8,1,0)) -> 0 | M8: =IF('Priorytety szkoleniowe'!M8=0,0,IF($R$3<='Priorytety szkoleniowe'!M8,1,0)) -> 0 | N8: =IF('Priorytety szkoleniowe'!N8=0,0,IF($R$3<='Priorytety szkoleniowe'!N8,1,0)) -> 0 | O8: =IF('Priorytety szkoleniowe'!O8=0,0,IF($R$3<='Priorytety szkoleniowe'!O8,1,0)) -> 0 | P8: =SUM(G8:O8) -> 0
A9: Suma osób | G9: =SUM(G4:G8) -> 2 | H9: 1 | I9: 2 | J9: 3 | K9: 1 | L9: 1 | M9: 3 | N9: 1 | O9: 1
A10: Liczba osobodni szkoleniowych
A11: 1 | B11: Jan Kowalski | G11: =G4*'Liczba dni szkoleń'!F4 -> 2 | H11: =H4*'Liczba dni szkoleń'!G4 -> 0 | I11: =I4*'Liczba dni szkoleń'!H4 -> 0 | J11: =J4*'Liczba dni szkoleń'!I4 -> 3 | K11: =K4*'Liczba dni szkoleń'!J4 -> 1 | L11: =L4*'Liczba dni szkoleń'!K4 -> 0 | M11: =M4*'Liczba dni szkoleń'!L4 -> 6 | N11: =N4*'Liczba dni szkoleń'!M4 -> 0 | O11: =O4*'Liczba dni szkoleń'!N4 -> 0 | P11: =SUM(G11:O11) -> 12
A12: 2 | B12: Maria Nowak | G12: =G5*'Liczba dni szkoleń'!F5 -> 0 | H12: =H5*'Liczba dni szkoleń'!G5 -> 4 | I12: =I5*'Liczba dni szkoleń'!H5 -> 5 | J12: =J5*'Liczba dni szkoleń'!I5 -> 3 | K12: =K5*'Liczba dni szkoleń'!J5 -> 0 | L12: =L5*'Liczba dni szkoleń'!K5 -> 5 | M12: =M5*'Liczba dni szkoleń'!L5 -> 6 | N12: =N5*'Liczba dni szkoleń'!M5 -> 3 | O12: =O5*'Liczba dni szkoleń'!N5 -> 0 | P12: 26
A13: 3 | B13: Piotr Krasinski | G13: =G6*'Liczba dni szkoleń'!F6 -> 2 | H13: =H6*'Liczba dni szkoleń'!G6 -> 0 | I13: =I6*'Liczba dni szkoleń'!H6 -> 5 | J13: =J6*'Liczba dni szkoleń'!I6 -> 3 | K13: =K6*'Liczba dni szkoleń'!J6 -> 0 | L13: =L6*'Liczba dni szkoleń'!K6 -> 0 | M13: =M6*'Liczba dni szkoleń'!L6 -> 6 | N13: =N6*'Liczba dni szkoleń'!M6 -> 0 | O13: =O6*'Liczba dni szkoleń'!N6 -> 10 | P13: 26
A14: 4 | G14: =G7*'Liczba dni szkoleń'!F7 -> 0 | H14: =H7*'Liczba dni szkoleń'!G7 -> 0 | I14: =I7*'Liczba dni szkoleń'!H7 -> 0 | J14: =J7*'Liczba dni szkoleń'!I7 -> 0 | K14: =K7*'Liczba dni szkoleń'!J7 -> 0 | L14: =L7*'Liczba dni szkoleń'!K7 -> 0 | M14: =M7*'Liczba dni szkoleń'!L7 -> 0 | N14: =N7*'Liczba dni szkoleń'!M7 -> 0 | O14: =O7*'Liczba dni szkoleń'!N7 -> 0 | P14: 0
A15: 5 | G15: =G8*'Liczba dni szkoleń'!F8 -> 0 | H15: =H8*'Liczba dni szkoleń'!G8 -> 0 | I15: =I8*'Liczba dni szkoleń'!H8 -> 0 | J15: =J8*'Liczba dni szkoleń'!I8 -> 0 | K15: =K8*'Liczba dni szkoleń'!J8 -> 0 | L15: =L8*'Liczba dni szkoleń'!K8 -> 0 | M15: =M8*'Liczba dni szkoleń'!L8 -> 0 | N15: =N8*'Liczba dni szkoleń'!M8 -> 0 | O15: =O8*'Liczba dni szkoleń'!N8 -> 0 | P15: 0
G16: =G9*'Liczba dni szkoleń'!F9 -> 0 | H16: =H9*'Liczba dni szkoleń'!G9 -> 0 | I16: =I9*'Liczba dni szkoleń'!H9 -> 0 | J16: =J9*'Liczba dni szkoleń'!I9 -> 0 | K16: =K9*'Liczba dni szkoleń'!J9 -> 0 | L16: =L9*'Liczba dni szkoleń'!K9 -> 0 | M16: =M9*'Liczba dni szkoleń'!L9 -> 0 | N16: =N9*'Liczba dni szkoleń'!M9 -> 0 | O16: =O9*'Liczba dni szkoleń'!N9 -> 0 | P16: 0
G17: =G10*'Liczba dni szkoleń'!F10 -> 0 | H17: =H10*'Liczba dni szkoleń'!G10 -> 0 | I17: =I10*'Liczba dni szkoleń'!H10 -> 0 | J17: =J10*'Liczba dni szkoleń'!I10 -> 0 | K17: =K10*'Liczba dni szkoleń'!J10 -> 0 | L17: =L10*'Liczba dni szkoleń'!K10 -> 0 | M17: =M10*'Liczba dni szkoleń'!L10 -> 0 | N17: =N10*'Liczba dni szkoleń'!M10 -> 0 | O17: =O10*'Liczba dni szkoleń'!N10 -> 0 | P17: 0
A18: Suma osobodni szkoleniowych | G18: =SUM(G11:G17) -> 4 | H18: 4 | I18: 10 | J18: 9 | K18: 1 | L18: 5 | M18: 18 | N18: 3 | O18: 10 | P18: 64
R20: Podtyp szkolenia
A21: Liczba szkoleń | G21: 1 | H21: 1 | I21: 1 | J21: 1 | K21: 1 | L21: 1 | M21: 1 | N21: 1 | O21: 1 | R21: OZ | S21: otwarte zewnętrzne
A22: Typ szkolenia | G22: 1 | H22: 2 | I22: 1 | J22: 3 | K22: 3 | L22: 5 | M22: 3 | N22: 2 | O22: 5 | R22: OW | S22: otwarte wewnętrzne
A23: Szkolenie 1 | E23: Miesiąc realizacji szkolenia | G23: 3 | H23: 1 | I23: 2 | J23: 3 | K23: 7 | L23: 9 | M23: 12 | N23: 12 | O23: 1 | R23: ZZ | S23: zamknięte zewnętrzne
E24: Liczba osób na szkoleniu | G24: =G9 -> 2 | H24: 1 | I24: 2 | J24: 3 | K24: 1 | L24: 1 | M24: 3 | N24: 1 | O24: 1 | R24: ZW | S24: zamknięte wewnętrzne
A25: Szkolenie 2 | E25: Miesiąc realizacji szkolenia | R25: brak
E26: Liczba osób na szkoleniu
A27: Szkolenie 3 | E27: Miesiąc realizacji szkolenia
E28: Liczba osób na szkoleniu

Sheet Koszty szkoleń
A1: PLN | D1: Jednostka organizacyjna | G1: Grupa tematyczna: Prawo | J1: Grupa tematyczna: Finanse | M1: Grupa tematyczna 3
A2: Lp. | B2: Pracownik | C2: Członek korpusu służby cywilnej | D2: Dział | E2: Wydział | F2: Departament | G2: Prawo administracyjne | H2: Prawo finansów publicznych | I2: Prawo zamówień publicznych | J2: Audyt | K2: Controling | L2: Ekonomia | M2: Tematyka 1 | N2: Tamatyka 2 | O2: Tematyka 3 | P2: Suma
A3: Planowane koszty szkoleń
A4: 1 | B4: Jan Kowalski | C4: ='Priorytety szkoleniowe'!C13 -> tak | G4: =IF('Planowanie szkoleń'!G$22=4,0,LOOKUP('Planowanie szkoleń'!G$22,'Ceny szkoleń'!$A$4:$A$6,'Ceny szkoleń'!F$4:F$6))*'Planowanie szkoleń'!G11*(1-'Ceny szkoleń'!F$8) -> 2000 | H4: =IF('Planowanie szkoleń'!H$22=4,0,LOOKUP('Planowanie szkoleń'!H$22,'Ceny szkoleń'!$A$4:$A$6,'Ceny szkoleń'!G$4:G$6))*'Planowanie szkoleń'!H11*(1-'Ceny szkoleń'!G$8) -> 0 | I4: =IF('Planowanie szkoleń'!I$22=4,0,LOOKUP('Planowanie szkoleń'!I$22,'Ceny szkoleń'!$A$4:$A$6,'Ceny szkoleń'!H$4:H$6))*'Planowanie szkoleń'!I11*(1-'Ceny szkoleń'!H$8) -> 0 | J4: =IF('Planowanie szkoleń'!J$22=4,0,LOOKUP('Planowanie szkoleń'!J$22,'Ceny szkoleń'!$A$4:$A$6,'Ceny szkoleń'!I$4:I$6))*'Planowanie szkoleń'!J11*(1-'Ceny szkoleń'!I$8) -> 42 | K4: =IF('Planowanie szkoleń'!K$22=4,0,LOOKUP('Planowanie szkoleń'!K$22,'Ceny szkoleń'!$A$4:$A$6,'Ceny szkoleń'!J$4:J$6))*'Planowanie szkoleń'!K11*(1-'Ceny szkoleń'!J$8) -> 200 | L4: =IF('Planowanie szkoleń'!L$22=4,0,LOOKUP('Planowanie szkoleń'!L$22,'Ceny szkoleń'!$A$4:$A$6,'Ceny szkoleń'!K$4:K$6))*'Planowanie szkoleń'!L11*(1-'Ceny szkoleń'!K$8) -> 0 | M4: =IF('Planowanie szkoleń'!M$22=4,0,LOOKUP('Planowanie szkoleń'!M$22,'Ceny szkoleń'!$A$4:$A$6,'Ceny szkoleń'!L$4:L$6))*'Planowanie szkoleń'!M11*(1-'Ceny szkoleń'!L$8) -> 300 | N4: =IF('Planowanie szkoleń'!N$22=4,0,LOOKUP('Planowanie szkoleń'!N$22,'Ceny szkoleń'!$A$4:$A$6,'Ceny szkoleń'!M$4:M$6))*'Planowanie szkoleń'!N11*(1-'Ceny szkoleń'!M$8) -> 0 | O4: =IF('Planowanie szkoleń'!O$22=4,0,LOOKUP('Planowanie szkoleń'!O$22,'Ceny szkoleń'!$A$4:$A$6,'Ceny szkoleń'!N$4:N$6))*'Planowanie szkoleń'!O11*(1-'Ceny szkoleń'!N$8) -> 0 | P4: =SUM(G4:O4) -> 2542
A5: 2 | B5: Maria Nowak | C5: ='Priorytety szkoleniowe'!C14 -> tak | G5: =IF('Planowanie szkoleń'!G$22=4,0,LOOKUP('Planowanie szkoleń'!G$22,'Ceny szkoleń'!$A$4:$A$6,'Ceny szkoleń'!F$4:F$6))*'Planowanie szkoleń'!G12*(1-'Ceny szkoleń'!F$8) -> 0 | H5: =IF('Planowanie szkoleń'!H$22=4,0,LOOKUP('Planowanie szkoleń'!H$22,'Ceny szkoleń'!$A$4:$A$6,'Ceny szkoleń'!G$4:G$6))*'Planowanie szkoleń'!H12*(1-'Ceny szkoleń'!G$8) -> 2000 | I5: =IF('Planowanie szkoleń'!I$22=4,0,LOOKUP('Planowanie szkoleń'!I$22,'Ceny szkoleń'!$A$4:$A$6,'Ceny szkoleń'!H$4:H$6))*'Planowanie szkoleń'!I12*(1-'Ceny szkoleń'!H$8) -> 5000 | J5: =IF('Planowanie szkoleń'!J$22=4,0,LOOKUP('Planowanie szkoleń'!J$22,'Ceny szkoleń'!$A$4:$A$6,'Ceny szkoleń'!I$4:I$6))*'Planowanie szkoleń'!J12*(1-'Ceny szkoleń'!I$8) -> 42 | K5: =IF('Planowanie szkoleń'!K$22=4,0,LOOKUP('Planowanie szkoleń'!K$22,'Ceny szkoleń'!$A$4:$A$6,'Ceny szkoleń'!J$4:J$6))*'Planowanie szkoleń'!K12*(1-'Ceny szkoleń'!J$8) -> 0 | L5: =IF('Planowanie szkoleń'!L$22=4,0,LOOKUP('Planowanie szkoleń'!L$22,'Ceny szkoleń'!$A$4:$A$6,'Ceny szkoleń'!K$4:K$6))*'Planowanie szkoleń'!L12*(1-'Ceny szkoleń'!K$8) -> 100 | M5: =IF('Planowanie szkoleń'!M$22=4,0,LOOKUP('Planowanie szkoleń'!M$22,'Ceny szkoleń'!$A$4:$A$6,'Ceny szkoleń'!L$4:L$6))*'Planowanie szkoleń'!M12*(1-'Ceny szkoleń'!L$8) -> 300 | N5: =IF('Planowanie szkoleń'!N$22=4,0,LOOKUP('Planowanie szkoleń'!N$22,'Ceny szkoleń'!$A$4:$A$6,'Ceny szkoleń'!M$4:M$6))*'Planowanie szkoleń'!N12*(1-'Ceny szkoleń'!M$8) -> 1500 | O5: =IF('Planowanie szkoleń'!O$22=4,0,LOOKUP('Planowanie szkoleń'!O$22,'Ceny szkoleń'!$A$4:$A$6,'Ceny szkoleń'!N$4:N$6))*'Planowanie szkoleń'!O12*(1-'Ceny szkoleń'!N$8) -> 0 | P5: =SUM(G5:O5) -> 8942
A6: 3 | B6: Piotr Krasinski | C6: ='Priorytety szkoleniowe'!C15 -> tak | G6: =IF('Planowanie szkoleń'!G$22=4,0,LOOKUP('Planowanie szkoleń'!G$22,'Ceny szkoleń'!$A$4:$A$6,'Ceny szkoleń'!F$4:F$6))*'Planowanie szkoleń'!G13*(1-'Ceny szkoleń'!F$8) -> 2000 | H6: =IF('Planowanie szkoleń'!H$22=4,0,LOOKUP('Planowanie szkoleń'!H$22,'Ceny szkoleń'!$A$4:$A$6,'Ceny szkoleń'!G$4:G$6))*'Planowanie szkoleń'!H13*(1-'Ceny szkoleń'!G$8) -> 0 | I6: =IF('Planowanie szkoleń'!I$22=4,0,LOOKUP('Planowanie szkoleń'!I$22,'Ceny szkoleń'!$A$4:$A$6,'Ceny szkoleń'!H$4:H$6))*'Planowanie szkoleń'!I13*(1-'Ceny szkoleń'!H$8) -> 5000 | J6: =IF('Planowanie szkoleń'!J$22=4,0,LOOKUP('Planowanie szkoleń'!J$22,'Ceny szkoleń'!$A$4:$A$6,'Ceny szkoleń'!I$4:I$6))*'Planowanie szkoleń'!J13*(1-'Ceny szkoleń'!I$8) -> 42 | K6: =IF('Planowanie szkoleń'!K$22=4,0,LOOKUP('Planowanie szkoleń'!K$22,'Ceny szkoleń'!$A$4:$A$6,'Ceny szkoleń'!J$4:J$6))*'Planowanie szkoleń'!K13*(1-'Ceny szkoleń'!J$8) -> 0 | L6: =IF('Planowanie szkoleń'!L$22=4,0,LOOKUP('Planowanie szkoleń'!L$22,'Ceny szkoleń'!$A$4:$A$6,'Ceny szkoleń'!K$4:K$6))*'Planowanie szkoleń'!L13*(1-'Ceny szkoleń'!K$8) -> 0 | M6: =IF('Planowanie szkoleń'!M$22=4,0,LOOKUP('Planowanie szkoleń'!M$22,'Ceny szkoleń'!$A$4:$A$6,'Ceny szkoleń'!L$4:L$6))*'Planowanie szkoleń'!M13*(1-'Ceny szkoleń'!L$8) -> 300 | N6: =IF('Planowanie szkoleń'!N$22=4,0,LOOKUP('Planowanie szkoleń'!N$22,'Ceny szkoleń'!$A$4:$A$6,'Ceny szkoleń'!M$4:M$6))*'Planowanie szkoleń'!N13*(1-'Ceny szkoleń'!M$8) -> 0 | O6: =IF('Planowanie szkoleń'!O$22=4,0,LOOKUP('Planowanie szkoleń'!O$22,'Ceny szkoleń'!$A$4:$A$6,'Ceny szkoleń'!N$4:N$6))*'Planowanie szkoleń'!O13*(1-'Ceny szkoleń'!N$8) -> 500 | P6: =SUM(G6:O6) -> 7842
A7: 4 | C7: ='Priorytety szkoleniowe'!C16 -> nie | G7: =IF('Planowanie szkoleń'!G$22=4,0,LOOKUP('Planowanie szkoleń'!G$22,'Ceny szkoleń'!$A$4:$A$6,'Ceny szkoleń'!F$4:F$6))*'Planowanie szkoleń'!G14*(1-'Ceny szkoleń'!F$8) -> 0 | H7: =IF('Planowanie szkoleń'!H$22=4,0,LOOKUP('Planowanie szkoleń'!H$22,'Ceny szkoleń'!$A$4:$A$6,'Ceny szkoleń'!G$4:G$6))*'Planowanie szkoleń'!H14*(1-'Ceny szkoleń'!G$8) -> 0 | I7: =IF('Planowanie szkoleń'!I$22=4,0,LOOKUP('Planowanie szkoleń'!I$22,'Ceny szkoleń'!$A$4:$A$6,'Ceny szkoleń'!H$4:H$6))*'Planowanie szkoleń'!I14*(1-'Ceny szkoleń'!H$8) -> 0 | J7: =IF('Planowanie szkoleń'!J$22=4,0,LOOKUP('Planowanie szkoleń'!J$22,'Ceny szkoleń'!$A$4:$A$6,'Ceny szkoleń'!I$4:I$6))*'Planowanie szkoleń'!J14*(1-'Ceny szkoleń'!I$8) -> 0 | K7: =IF('Planowanie szkoleń'!K$22=4,0,LOOKUP('Planowanie szkoleń'!K$22,'Ceny szkoleń'!$A$4:$A$6,'Ceny szkoleń'!J$4:J$6))*'Planowanie szkoleń'!K14*(1-'Ceny szkoleń'!J$8) -> 0 | L7: =IF('Planowanie szkoleń'!L$22=4,0,LOOKUP('Planowanie szkoleń'!L$22,'Ceny szkoleń'!$A$4:$A$6,'Ceny szkoleń'!K$4:K$6))*'Planowanie szkoleń'!L14*(1-'Ceny szkoleń'!K$8) -> 0 | M7: =IF('Planowanie szkoleń'!M$22=4,0,LOOKUP('Planowanie szkoleń'!M$22,'Ceny szkoleń'!$A$4:$A$6,'Ceny szkoleń'!L$4:L$6))*'Planowanie szkoleń'!M14*(1-'Ceny szkoleń'!L$8) -> 0 | N7: =IF('Planowanie szkoleń'!N$22=4,0,LOOKUP('Planowanie szkoleń'!N$22,'Ceny szkoleń'!$A$4:$A$6,'Ceny szkoleń'!M$4:M$6))*'Planowanie szkoleń'!N14*(1-'Ceny szkoleń'!M$8) -> 0 | O7: =IF('Planowanie szkoleń'!O$22=4,0,LOOKUP('Planowanie szkoleń'!O$22,'Ceny szkoleń'!$A$4:$A$6,'Ceny szkoleń'!N$4:N$6))*'Planowanie szkoleń'!O14*(1-'Ceny szkoleń'!N$8) -> 0 | P7: =SUM(G7:O7) -> 0
A8: 5 | C8: ='Priorytety szkoleniowe'!C17 -> nie | G8: =IF('Planowanie szkoleń'!G$22=4,0,LOOKUP('Planowanie szkoleń'!G$22,'Ceny szkoleń'!$A$4:$A$6,'Ceny szkoleń'!F$4:F$6))*'Planowanie szkoleń'!G15*(1-'Ceny szkoleń'!F$8) -> 0 | H8: =IF('Planowanie szkoleń'!H$22=4,0,LOOKUP('Planowanie szkoleń'!H$22,'Ceny szkoleń'!$A$4:$A$6,'Ceny szkoleń'!G$4:G$6))*'Planowanie szkoleń'!H15*(1-'Ceny szkoleń'!G$8) -> 0 | I8: =IF('Planowanie szkoleń'!I$22=4,0,LOOKUP('Planowanie szkoleń'!I$22,'Ceny szkoleń'!$A$4:$A$6,'Ceny szkoleń'!H$4:H$6))*'Planowanie szkoleń'!I15*(1-'Ceny szkoleń'!H$8) -> 0 | J8: =IF('Planowanie szkoleń'!J$22=4,0,LOOKUP('Planowanie szkoleń'!J$22,'Ceny szkoleń'!$A$4:$A$6,'Ceny szkoleń'!I$4:I$6))*'Planowanie szkoleń'!J15*(1-'Ceny szkoleń'!I$8) -> 0 | K8: =IF('Planowanie szkoleń'!K$22=4,0,LOOKUP('Planowanie szkoleń'!K$22,'Ceny szkoleń'!$A$4:$A$6,'Ceny szkoleń'!J$4:J$6))*'Planowanie szkoleń'!K15*(1-'Ceny szkoleń'!J$8) -> 0 | L8: =IF('Planowanie szkoleń'!L$22=4,0,LOOKUP('Planowanie szkoleń'!L$22,'Ceny szkoleń'!$A$4:$A$6,'Ceny szkoleń'!K$4:K$6))*'Planowanie szkoleń'!L15*(1-'Ceny szkoleń'!K$8) -> 0 | M8: =IF('Planowanie szkoleń'!M$22=4,0,LOOKUP('Planowanie szkoleń'!M$22,'Ceny szkoleń'!$A$4:$A$6,'Ceny szkoleń'!L$4:L$6))*'Planowanie szkoleń'!M15*(1-'Ceny szkoleń'!L$8) -> 0 | N8: =IF('Planowanie szkoleń'!N$22=4,0,LOOKUP('Planowanie szkoleń'!N$22,'Ceny szkoleń'!$A$4:$A$6,'Ceny szkoleń'!M$4:M$6))*'Planowanie szkoleń'!N15*(1-'Ceny szkoleń'!M$8) -> 0 | O8: =IF('Planowanie szkoleń'!O$22=4,0,LOOKUP('Planowanie szkoleń'!O$22,'Ceny szkoleń'!$A$4:$A$6,'Ceny szkoleń'!N$4:N$6))*'Planowanie szkoleń'!O15*(1-'Ceny szkoleń'!N$8) -> 0 | P8: =SUM(G8:O8) -> 0
A9: Suma kosztów szkoleń | G9: =SUM(G4:G8) -> 4000 | H9: 2000 | I9: 10000 | J9: 126 | K9: 200 | L9: 100 | M9: 900 | N9: 1500 | O9: 500 | P9: 19326
B11: Dostępny budżet szkoleniowy | E11: 50000 | F11: PLN
B12: Rezerwa budżetowa | E12: =E11-P9 -> 30674 | F12: PLN
B13: % rezerwy | E13: =IF(E12<0,0,E12/E11) -> 0.61348 | F13: =IF(E13<50%,"","POPRAW!") -> POPRAW!
A15: Planowane koszty szkoleń ad hoc
A16: 1 | B16: Jan Kowalski | C16: =C4 -> tak | G16: =IF('Priorytety szkoleniowe'!G13=0,0,1*'Liczba dni szkoleń'!F13*'Ceny szkoleń'!F13)*(1-'Ceny szkoleń'!F$8) -> 200 | H16: =IF('Priorytety szkoleniowe'!H13=0,0,1*'Liczba dni szkoleń'!G13*'Ceny szkoleń'!G13)*(1-'Ceny szkoleń'!G$8) -> 0 | I16: =IF('Priorytety szkoleniowe'!I13=0,0,1*'Liczba dni szkoleń'!H13*'Ceny szkoleń'!H13)*(1-'Ceny szkoleń'!H$8) -> 0 | J16: =IF('Priorytety szkoleniowe'!J13=0,0,1*'Liczba dni szkoleń'!I13*'Ceny szkoleń'!I13)*(1-'Ceny szkoleń'!I$8) -> 1050 | K16: =IF('Priorytety szkoleniowe'!K13=0,0,1*'Liczba dni szkoleń'!J13*'Ceny szkoleń'!J13)*(1-'Ceny szkoleń'!J$8) -> 0 | L16: =IF('Priorytety szkoleniowe'!L13=0,0,1*'Liczba dni szkoleń'!K13*'Ceny szkoleń'!K13)*(1-'Ceny szkoleń'!K$8) -> 0 | M16: =IF('Priorytety szkoleniowe'!M13=0,0,1*'Liczba dni szkoleń'!L13*'Ceny szkoleń'!L13)*(1-'Ceny szkoleń'!L$8) -> 0 | N16: =IF('Priorytety szkoleniowe'!N13=0,0,1*'Liczba dni szkoleń'!M13*'Ceny szkoleń'!M13)*(1-'Ceny szkoleń'!M$8) -> 0 | O16: =IF('Priorytety szkoleniowe'!O13=0,0,1*'Liczba dni szkoleń'!N13*'Ceny szkoleń'!N13)*(1-'Ceny szkoleń'!N$8) -> 0 | P16: =SUM(G16:O16) -> 1250
A17: 2 | B17: Maria Nowak | C17: =C5 -> tak | G17: =IF('Priorytety szkoleniowe'!G14=0,0,1*'Liczba dni szkoleń'!F14*'Ceny szkoleń'!F14)*(1-'Ceny szkoleń'!F$8) -> 250 | H17: =IF('Priorytety szkoleniowe'!H14=0,0,1*'Liczba dni szkoleń'!G14*'Ceny szkoleń'!G14)*(1-'Ceny szkoleń'!G$8) -> 0 | I17: =IF('Priorytety szkoleniowe'!I14=0,0,1*'Liczba dni szkoleń'!H14*'Ceny szkoleń'!H14)*(1-'Ceny szkoleń'!H$8) -> 0 | J17: =IF('Priorytety szkoleniowe'!J14=0,0,1*'Liczba dni szkoleń'!I14*'Ceny szkoleń'!I14)*(1-'Ceny szkoleń'!I$8) -> 0 | K17: =IF('Priorytety szkoleniowe'!K14=0,0,1*'Liczba dni szkoleń'!J14*'Ceny szkoleń'!J14)*(1-'Ceny szkoleń'!J$8) -> 0 | L17: =IF('Priorytety szkoleniowe'!L14=0,0,1*'Liczba dni szkoleń'!K14*'Ceny szkoleń'!K14)*(1-'Ceny szkoleń'!K$8) -> 0 | M17: =IF('Priorytety szkoleniowe'!M14=0,0,1*'Liczba dni szkoleń'!L14*'Ceny szkoleń'!L14)*(1-'Ceny szkoleń'!L$8) -> 0 | N17: =IF('Priorytety szkoleniowe'!N14=0,0,1*'Liczba dni szkoleń'!M14*'Ceny szkoleń'!M14)*(1-'Ceny szkoleń'!M$8) -> 0 | O17: =IF('Priorytety szkoleniowe'!O14=0,0,1*'Liczba dni szkoleń'!N14*'Ceny szkoleń'!N14)*(1-'Ceny szkoleń'!N$8) -> 0 | P17: =SUM(G17:O17) -> 250
A18: 3 | B18: Piotr Krasinski | C18: =C6 -> tak | G18: =IF('Priorytety szkoleniowe'!G15=0,0,1*'Liczba dni szkoleń'!F15*'Ceny szkoleń'!F15)*(1-'Ceny szkoleń'!F$8) -> 0 | H18: =IF('Priorytety szkoleniowe'!H15=0,0,1*'Liczba dni szkoleń'!G15*'Ceny szkoleń'!G15)*(1-'Ceny szkoleń'!G$8) -> 0 | I18: =IF('Priorytety szkoleniowe'!I15=0,0,1*'Liczba dni szkoleń'!H15*'Ceny szkoleń'!H15)*(1-'Ceny szkoleń'!H$8) -> 0 | J18: =IF('Priorytety szkoleniowe'!J15=0,0,1*'Liczba dni szkoleń'!I15*'Ceny szkoleń'!I15)*(1-'Ceny szkoleń'!I$8) -> 0 | K18: =IF('Priorytety szkoleniowe'!K15=0,0,1*'Liczba dni szkoleń'!J15*'Ceny szkoleń'!J15)*(1-'Ceny szkoleń'!J$8) -> 0 | L18: =IF('Priorytety szkoleniowe'!L15=0,0,1*'Liczba dni szkoleń'!K15*'Ceny szkoleń'!K15)*(1-'Ceny szkoleń'!K$8) -> 0 | M18: =IF('Priorytety szkoleniowe'!M15=0,0,1*'Liczba dni szkoleń'!L15*'Ceny szkoleń'!L15)*(1-'Ceny szkoleń'!L$8) -> 0 | N18: =IF('Priorytety szkoleniowe'!N15=0,0,1*'Liczba dni szkoleń'!M15*'Ceny szkoleń'!M15)*(1-'Ceny szkoleń'!M$8) -> 0 | O18: =IF('Priorytety szkoleniowe'!O15=0,0,1*'Liczba dni szkoleń'!N15*'Ceny szkoleń'!N15)*(1-'Ceny szkoleń'!N$8) -> 0 | P18: =SUM(G18:O18) -> 0
A19: 4 | C19: =C7 -> nie | G19: =IF('Priorytety szkoleniowe'!G16=0,0,1*'Liczba dni szkoleń'!F16*'Ceny szkoleń'!F16)*(1-'Ceny szkoleń'!F$8) -> 0 | H19: =IF('Priorytety szkoleniowe'!H16=0,0,1*'Liczba dni szkoleń'!G16*'Ceny szkoleń'!G16)*(1-'Ceny szkoleń'!G$8) -> 0 | I19: =IF('Priorytety szkoleniowe'!I16=0,0,1*'Liczba dni szkoleń'!H16*'Ceny szkoleń'!H16)*(1-'Ceny szkoleń'!H$8) -> 0 | J19: =IF('Priorytety szkoleniowe'!J16=0,0,1*'Liczba dni szkoleń'!I16*'Ceny szkoleń'!I16)*(1-'Ceny szkoleń'!I$8) -> 0 | K19: =IF('Priorytety szkoleniowe'!K16=0,0,1*'Liczba dni szkoleń'!J16*'Ceny szkoleń'!J16)*(1-'Ceny szkoleń'!J$8) -> 0 | L19: =IF('Priorytety szkoleniowe'!L16=0,0,1*'Liczba dni szkoleń'!K16*'Ceny szkoleń'!K16)*(1-'Ceny szkoleń'!K$8) -> 0 | M19: =IF('Priorytety szkoleniowe'!M16=0,0,1*'Liczba dni szkoleń'!L16*'Ceny szkoleń'!L16)*(1-'Ceny szkoleń'!L$8) -> 0 | N19: =IF('Priorytety szkoleniowe'!N16=0,0,1*'Liczba dni szkoleń'!M16*'Ceny szkoleń'!M16)*(1-'Ceny szkoleń'!M$8) -> 0 | O19: =IF('Priorytety szkoleniowe'!O16=0,0,1*'Liczba dni szkoleń'!N16*'Ceny szkoleń'!N16)*(1-'Ceny szkoleń'!N$8) -> 0 | P19: =SUM(G19:O19) -> 0
A20: 5 | C20: =C8 -> nie | P20: =SUM(G20:O20) -> 0
A21: Suma kosztów szkoleń | G21: =SUM(G16:G20) -> 450 | H21: 0 | I21: 0 | J21: 1050 | K21: 0 | L21: 0 | M21: 0 | N21: 0 | O21: 0 | P21: 1500
A23: Koszty szkoleń razem
A24: 1 | B24: Jan Kowalski | C24: =C4 -> tak | G24: =G4+G16 -> 2200 | H24: =H4+H16 -> 0 | I24: 0 | J24: 1092 | K24: 200 | L24: 0 | M24: 300 | N24: 0 | O24: 0 | P24: =SUM(G24:O24) -> 3792
A25: 2 | B25: Maria Nowak | C25: =C5 -> tak | G25: =G5+G17 -> 250 | H25: 2000 | I25: 5000 | J25: 42 | K25: 0 | L25: 100 | M25: 300 | N25: 1500 | O25: 0 | P25: =SUM(G25:O25) -> 9192
A26: 3 | B26: Piotr Krasinski | C26: =C6 -> tak | G26: 2000 | H26: 0 | I26: 5000 | J26: 42 | K26: 0 | L26: 0 | M26: 300 | N26: 0 | O26: 500 | P26: =SUM(G26:O26) -> 7842
A27: 4 | C27: =C7 -> nie | G27: 0 | H27: 0 | I27: 0 | J27: 0 | K27: 0 | L27: 0 | M27: 0 | N27: 0 | O27: 0 | P27: =SUM(G27:O27) -> 0
A28: 5 | C28: =C8 -> nie | G28: 0 | H28: 0 | I28: 0 | J28: 0 | K28: 0 | L28: 0 | M28: 0 | N28: 0 | O28: 0 | P28: =SUM(G28:O28) -> 0
A29: Suma kosztów szkoleń | G29: =SUM(G24:G28) -> 4450 | H29: 2000 | I29: 10000 | J29: 1176 | K29: 200 | L29: 100 | M29: 900 | N29: 1500 | O29: 500 | P29: 20826
B30: w tym:
C31: członkowie korpusu służby cywilnej | G31: =SUMIF($C$24:$C$28,"tak",G24:G28) -> 4450 | H31: =SUMIF($C$24:$C$28,"tak",H24:H28) -> 2000 | I31: 10000 | J31: 1176 | K31: 200 | L31: 100 | M31: 900 | N31: 1500 | O31: 500 | P31: 20826
C32: pozostali pracownicy | G32: =G29-G31 -> 0 | H32: =H29-H31 -> 0 | I32: 0 | J32: 0 | K32: 0 | L32: 0 | M32: 0 | N32: 0 | O32: 0 | P32: 0
B37: Rezerwa pozostała do wykorzystania | E37: =E11-P29 -> 29174 | F37: PLN
B38: % rezerwy pozostałej do wykorzystania | E38: =E37/E11 -> 0.58348
A40: Koszt dla partycypujących pracowników
A41: 1 | B41: Jan Kowalski | G41: =IF('Planowanie szkoleń'!G$22=0,0,LOOKUP('Planowanie szkoleń'!G$22,'Ceny szkoleń'!$A$4:$A$6,'Ceny szkoleń'!F$4:F$6))*'Planowanie szkoleń'!G11*('Ceny szkoleń'!F$8)+IF('Priorytety szkoleniowe'!G13=0,0,1*'Liczba dni szkoleń'!F13*'Ceny szkoleń'!F13)*'Ceny szkoleń'!F$8 -> 0 | H41: =IF('Planowanie szkoleń'!H$22=0,0,LOOKUP('Planowanie szkoleń'!H$22,'Ceny szkoleń'!$A$4:$A$6,'Ceny szkoleń'!G$4:G$6))*'Planowanie szkoleń'!H11*('Ceny szkoleń'!G$8)+IF('Priorytety szkoleniowe'!H13=0,0,1*'Liczba dni szkoleń'!G13*'Ceny szkoleń'!G13)*'Ceny szkoleń'!G$8 -> 0 | I41: =IF('Planowanie szkoleń'!I$22=0,0,LOOKUP('Planowanie szkoleń'!I$22,'Ceny szkoleń'!$A$4:$A$6,'Ceny szkoleń'!H$4:H$6))*'Planowanie szkoleń'!I11*('Ceny szkoleń'!H$8)+IF('Priorytety szkoleniowe'!I13=0,0,1*'Liczba dni szkoleń'!H13*'Ceny szkoleń'!H13)*'Ceny szkoleń'!H$8 -> 0 | J41: =IF('Planowanie szkoleń'!J$22=0,0,LOOKUP('Planowanie szkoleń'!J$22,'Ceny szkoleń'!$A$4:$A$6,'Ceny szkoleń'!I$4:I$6))*'Planowanie szkoleń'!J11*('Ceny szkoleń'!I$8)+IF('Priorytety szkoleniowe'!J13=0,0,1*'Liczba dni szkoleń'!I13*'Ceny szkoleń'!I13)*'Ceny szkoleń'!I$8 -> 468 | K41: =IF('Planowanie szkoleń'!K$22=0,0,LOOKUP('Planowanie szkoleń'!K$22,'Ceny szkoleń'!$A$4:$A$6,'Ceny szkoleń'!J$4:J$6))*'Planowanie szkoleń'!K11*('Ceny szkoleń'!J$8)+IF('Priorytety szkoleniowe'!K13=0,0,1*'Liczba dni szkoleń'!J13*'Ceny szkoleń'!J13)*'Ceny szkoleń'!J$8 -> 0 | L41: =IF('Planowanie szkoleń'!L$22=0,0,LOOKUP('Planowanie szkoleń'!L$22,'Ceny szkoleń'!$A$4:$A$6,'Ceny szkoleń'!K$4:K$6))*'Planowanie szkoleń'!L11*('Ceny szkoleń'!K$8)+IF('Priorytety szkoleniowe'!L13=0,0,1*'Liczba dni szkoleń'!K13*'Ceny szkoleń'!K13)*'Ceny szkoleń'!K$8 -> 0 | M41: =IF('Planowanie szkoleń'!M$22=0,0,LOOKUP('Planowanie szkoleń'!M$22,'Ceny szkoleń'!$A$4:$A$6,'Ceny szkoleń'!L$4:L$6))*'Planowanie szkoleń'!M11*('Ceny szkoleń'!L$8)+IF('Priorytety szkoleniowe'!M13=0,0,1*'Liczba dni szkoleń'!L13*'Ceny szkoleń'!L13)*'Ceny szkoleń'!L$8 -> 0 | N41: =IF('Planowanie szkoleń'!N$22=0,0,LOOKUP('Planowanie szkoleń'!N$22,'Ceny szkoleń'!$A$4:$A$6,'Ceny szkoleń'!M$4:M$6))*'Planowanie szkoleń'!N11*('Ceny szkoleń'!M$8)+IF('Priorytety szkoleniowe'!N13=0,0,1*'Liczba dni szkoleń'!M13*'Ceny szkoleń'!M13)*'Ceny szkoleń'!M$8 -> 0 | O41: =IF('Planowanie szkoleń'!O$22=0,0,LOOKUP('Planowanie szkoleń'!O$22,'Ceny szkoleń'!$A$4:$A$6,'Ceny szkoleń'!N$4:N$6))*'Planowanie szkoleń'!O11*('Ceny szkoleń'!N$8)+IF('Priorytety szkoleniowe'!O13=0,0,1*'Liczba dni szkoleń'!N13*'Ceny szkoleń'!N13)*'Ceny szkoleń'!N$8 -> 0 | P41: =SUM(G41:O41) -> 468
A42: 2 | B42: Maria Nowak | G42: =IF('Planowanie szkoleń'!G$22=0,0,LOOKUP('Planowanie szkoleń'!G$22,'Ceny szkoleń'!$A$4:$A$6,'Ceny szkoleń'!F$4:F$6))*'Planowanie szkoleń'!G12*('Ceny szkoleń'!F$8)+IF('Priorytety szkoleniowe'!G14=0,0,1*'Liczba dni szkoleń'!F14*'Ceny szkoleń'!F14)*'Ceny szkoleń'!F$8 -> 0 | H42: =IF('Planowanie szkoleń'!H$22=0,0,LOOKUP('Planowanie szkoleń'!H$22,'Ceny szkoleń'!$A$4:$A$6,'Ceny szkoleń'!G$4:G$6))*'Planowanie szkoleń'!H12*('Ceny szkoleń'!G$8)+IF('Priorytety szkoleniowe'!H14=0,0,1*'Liczba dni szkoleń'!G14*'Ceny szkoleń'!G14)*'Ceny szkoleń'!G$8 -> 0 | I42: =IF('Planowanie szkoleń'!I$22=0,0,LOOKUP('Planowanie szkoleń'!I$22,'Ceny szkoleń'!$A$4:$A$6,'Ceny szkoleń'!H$4:H$6))*'Planowanie szkoleń'!I12*('Ceny szkoleń'!H$8)+IF('Priorytety szkoleniowe'!I14=0,0,1*'Liczba dni szkoleń'!H14*'Ceny szkoleń'!H14)*'Ceny szkoleń'!H$8 -> 0 | J42: =IF('Planowanie szkoleń'!J$22=0,0,LOOKUP('Planowanie szkoleń'!J$22,'Ceny szkoleń'!$A$4:$A$6,'Ceny szkoleń'!I$4:I$6))*'Planowanie szkoleń'!J12*('Ceny szkoleń'!I$8)+IF('Priorytety szkoleniowe'!J14=0,0,1*'Liczba dni szkoleń'!I14*'Ceny szkoleń'!I14)*'Ceny szkoleń'!I$8 -> 18 | K42: =IF('Planowanie szkoleń'!K$22=0,0,LOOKUP('Planowanie szkoleń'!K$22,'Ceny szkoleń'!$A$4:$A$6,'Ceny szkoleń'!J$4:J$6))*'Planowanie szkoleń'!K12*('Ceny szkoleń'!J$8)+IF('Priorytety szkoleniowe'!K14=0,0,1*'Liczba dni szkoleń'!J14*'Ceny szkoleń'!J14)*'Ceny szkoleń'!J$8 -> 0 | L42: =IF('Planowanie szkoleń'!L$22=0,0,LOOKUP('Planowanie szkoleń'!L$22,'Ceny szkoleń'!$A$4:$A$6,'Ceny szkoleń'!K$4:K$6))*'Planowanie szkoleń'!L12*('Ceny szkoleń'!K$8)+IF('Priorytety szkoleniowe'!L14=0,0,1*'Liczba dni szkoleń'!K14*'Ceny szkoleń'!K14)*'Ceny szkoleń'!K$8 -> 0 | M42: =IF('Planowanie szkoleń'!M$22=0,0,LOOKUP('Planowanie szkoleń'!M$22,'Ceny szkoleń'!$A$4:$A$6,'Ceny szkoleń'!L$4:L$6))*'Planowanie szkoleń'!M12*('Ceny szkoleń'!L$8)+IF('Priorytety szkoleniowe'!M14=0,0,1*'Liczba dni szkoleń'!L14*'Ceny szkoleń'!L14)*'Ceny szkoleń'!L$8 -> 0 | N42: =IF('Planowanie szkoleń'!N$22=0,0,LOOKUP('Planowanie szkoleń'!N$22,'Ceny szkoleń'!$A$4:$A$6,'Ceny szkoleń'!M$4:M$6))*'Planowanie szkoleń'!N12*('Ceny szkoleń'!M$8)+IF('Priorytety szkoleniowe'!N14=0,0,1*'Liczba dni szkoleń'!M14*'Ceny szkoleń'!M14)*'Ceny szkoleń'!M$8 -> 0 | O42: =IF('Planowanie szkoleń'!O$22=0,0,LOOKUP('Planowanie szkoleń'!O$22,'Ceny szkoleń'!$A$4:$A$6,'Ceny szkoleń'!N$4:N$6))*'Planowanie szkoleń'!O12*('Ceny szkoleń'!N$8)+IF('Priorytety szkoleniowe'!O14=0,0,1*'Liczba dni szkoleń'!N14*'Ceny szkoleń'!N14)*'Ceny szkoleń'!N$8 -> 0 | P42: =SUM(G42:O42) -> 18
A43: 3 | B43: Piotr Krasinski | G43: =IF('Planowanie szkoleń'!G$22=0,0,LOOKUP('Planowanie szkoleń'!G$22,'Ceny szkoleń'!$A$4:$A$6,'Ceny szkoleń'!F$4:F$6))*'Planowanie szkoleń'!G13*('Ceny szkoleń'!F$8)+IF('Priorytety szkoleniowe'!G15=0,0,1*'Liczba dni szkoleń'!F15*'Ceny szkoleń'!F15)*'Ceny szkoleń'!F$8 -> 0 | H43: =IF('Planowanie szkoleń'!H$22=0,0,LOOKUP('Planowanie szkoleń'!H$22,'Ceny szkoleń'!$A$4:$A$6,'Ceny szkoleń'!G$4:G$6))*'Planowanie szkoleń'!H13*('Ceny szkoleń'!G$8)+IF('Priorytety szkoleniowe'!H15=0,0,1*'Liczba dni szkoleń'!G15*'Ceny szkoleń'!G15)*'Ceny szkoleń'!G$8 -> 0 | I43: =IF('Planowanie szkoleń'!I$22=0,0,LOOKUP('Planowanie szkoleń'!I$22,'Ceny szkoleń'!$A$4:$A$6,'Ceny szkoleń'!H$4:H$6))*'Planowanie szkoleń'!I13*('Ceny szkoleń'!H$8)+IF('Priorytety szkoleniowe'!I15=0,0,1*'Liczba dni szkoleń'!H15*'Ceny szkoleń'!H15)*'Ceny szkoleń'!H$8 -> 0 | J43: =IF('Planowanie szkoleń'!J$22=0,0,LOOKUP('Planowanie szkoleń'!J$22,'Ceny szkoleń'!$A$4:$A$6,'Ceny szkoleń'!I$4:I$6))*'Planowanie szkoleń'!J13*('Ceny szkoleń'!I$8)+IF('Priorytety szkoleniowe'!J15=0,0,1*'Liczba dni szkoleń'!I15*'Ceny szkoleń'!I15)*'Ceny szkoleń'!I$8 -> 18 | K43: =IF('Planowanie szkoleń'!K$22=0,0,LOOKUP('Planowanie szkoleń'!K$22,'Ceny szkoleń'!$A$4:$A$6,'Ceny szkoleń'!J$4:J$6))*'Planowanie szkoleń'!K13*('Ceny szkoleń'!J$8)+IF('Priorytety szkoleniowe'!K15=0,0,1*'Liczba dni szkoleń'!J15*'Ceny szkoleń'!J15)*'Ceny szkoleń'!J$8 -> 0 | L43: =IF('Planowanie szkoleń'!L$22=0,0,LOOKUP('Planowanie szkoleń'!L$22,'Ceny szkoleń'!$A$4:$A$6,'Ceny szkoleń'!K$4:K$6))*'Planowanie szkoleń'!L13*('Ceny szkoleń'!K$8)+IF('Priorytety szkoleniowe'!L15=0,0,1*'Liczba dni szkoleń'!K15*'Ceny szkoleń'!K15)*'Ceny szkoleń'!K$8 -> 0 | M43: =IF('Planowanie szkoleń'!M$22=0,0,LOOKUP('Planowanie szkoleń'!M$22,'Ceny szkoleń'!$A$4:$A$6,'Ceny szkoleń'!L$4:L$6))*'Planowanie szkoleń'!M13*('Ceny szkoleń'!L$8)+IF('Priorytety szkoleniowe'!M15=0,0,1*'Liczba dni szkoleń'!L15*'Ceny szkoleń'!L15)*'Ceny szkoleń'!L$8 -> 0 | N43: =IF('Planowanie szkoleń'!N$22=0,0,LOOKUP('Planowanie szkoleń'!N$22,'Ceny szkoleń'!$A$4:$A$6,'Ceny szkoleń'!M$4:M$6))*'Planowanie szkoleń'!N13*('Ceny szkoleń'!M$8)+IF('Priorytety szkoleniowe'!N15=0,0,1*'Liczba dni szkoleń'!M15*'Ceny szkoleń'!M15)*'Ceny szkoleń'!M$8 -> 0 | O43: =IF('Planowanie szkoleń'!O$22=0,0,LOOKUP('Planowanie szkoleń'!O$22,'Ceny szkoleń'!$A$4:$A$6,'Ceny szkoleń'!N$4:N$6))*'Planowanie szkoleń'!O13*('Ceny szkoleń'!N$8)+IF('Priorytety szkoleniowe'!O15=0,0,1*'Liczba dni szkoleń'!N15*'Ceny szkoleń'!N15)*'Ceny szkoleń'!N$8 -> 0 | P43: =SUM(G43:O43) -> 18
A44: 4 | G44: =IF('Planowanie szkoleń'!G$22=0,0,LOOKUP('Planowanie szkoleń'!G$22,'Ceny szkoleń'!$A$4:$A$6,'Ceny szkoleń'!F$4:F$6))*'Planowanie szkoleń'!G14*('Ceny szkoleń'!F$8)+IF('Priorytety szkoleniowe'!G16=0,0,1*'Liczba dni szkoleń'!F16*'Ceny szkoleń'!F16)*'Ceny szkoleń'!F$8 -> 0 | H44: =IF('Planowanie szkoleń'!H$22=0,0,LOOKUP('Planowanie szkoleń'!H$22,'Ceny szkoleń'!$A$4:$A$6,'Ceny szkoleń'!G$4:G$6))*'Planowanie szkoleń'!H14*('Ceny szkoleń'!G$8)+IF('Priorytety szkoleniowe'!H16=0,0,1*'Liczba dni szkoleń'!G16*'Ceny szkoleń'!G16)*'Ceny szkoleń'!G$8 -> 0 | I44: =IF('Planowanie szkoleń'!I$22=0,0,LOOKUP('Planowanie szkoleń'!I$22,'Ceny szkoleń'!$A$4:$A$6,'Ceny szkoleń'!H$4:H$6))*'Planowanie szkoleń'!I14*('Ceny szkoleń'!H$8)+IF('Priorytety szkoleniowe'!I16=0,0,1*'Liczba dni szkoleń'!H16*'Ceny szkoleń'!H16)*'Ceny szkoleń'!H$8 -> 0 | J44: =IF('Planowanie szkoleń'!J$22=0,0,LOOKUP('Planowanie szkoleń'!J$22,'Ceny szkoleń'!$A$4:$A$6,'Ceny szkoleń'!I$4:I$6))*'Planowanie szkoleń'!J14*('Ceny szkoleń'!I$8)+IF('Priorytety szkoleniowe'!J16=0,0,1*'Liczba dni szkoleń'!I16*'Ceny szkoleń'!I16)*'Ceny szkoleń'!I$8 -> 0 | K44: =IF('Planowanie szkoleń'!K$22=0,0,LOOKUP('Planowanie szkoleń'!K$22,'Ceny szkoleń'!$A$4:$A$6,'Ceny szkoleń'!J$4:J$6))*'Planowanie szkoleń'!K14*('Ceny szkoleń'!J$8)+IF('Priorytety szkoleniowe'!K16=0,0,1*'Liczba dni szkoleń'!J16*'Ceny szkoleń'!J16)*'Ceny szkoleń'!J$8 -> 0 | L44: =IF('Planowanie szkoleń'!L$22=0,0,LOOKUP('Planowanie szkoleń'!L$22,'Ceny szkoleń'!$A$4:$A$6,'Ceny szkoleń'!K$4:K$6))*'Planowanie szkoleń'!L14*('Ceny szkoleń'!K$8)+IF('Priorytety szkoleniowe'!L16=0,0,1*'Liczba dni szkoleń'!K16*'Ceny szkoleń'!K16)*'Ceny szkoleń'!K$8 -> 0 | M44: =IF('Planowanie szkoleń'!M$22=0,0,LOOKUP('Planowanie szkoleń'!M$22,'Ceny szkoleń'!$A$4:$A$6,'Ceny szkoleń'!L$4:L$6))*'Planowanie szkoleń'!M14*('Ceny szkoleń'!L$8)+IF('Priorytety szkoleniowe'!M16=0,0,1*'Liczba dni szkoleń'!L16*'Ceny szkoleń'!L16)*'Ceny szkoleń'!L$8 -> 0 | N44: =IF('Planowanie szkoleń'!N$22=0,0,LOOKUP('Planowanie szkoleń'!N$22,'Ceny szkoleń'!$A$4:$A$6,'Ceny szkoleń'!M$4:M$6))*'Planowanie szkoleń'!N14*('Ceny szkoleń'!M$8)+IF('Priorytety szkoleniowe'!N16=0,0,1*'Liczba dni szkoleń'!M16*'Ceny szkoleń'!M16)*'Ceny szkoleń'!M$8 -> 0 | O44: =IF('Planowanie szkoleń'!O$22=0,0,LOOKUP('Planowanie szkoleń'!O$22,'Ceny szkoleń'!$A$4:$A$6,'Ceny szkoleń'!N$4:N$6))*'Planowanie szkoleń'!O14*('Ceny szkoleń'!N$8)+IF('Priorytety szkoleniowe'!O16=0,0,1*'Liczba dni szkoleń'!N16*'Ceny szkoleń'!N16)*'Ceny szkoleń'!N$8 -> 0 | P44: =SUM(G44:O44) -> 0
A45: 5 | G45: =IF('Planowanie szkoleń'!G$22=0,0,LOOKUP('Planowanie szkoleń'!G$22,'Ceny szkoleń'!$A$4:$A$6,'Ceny szkoleń'!F$4:F$6))*'Planowanie szkoleń'!G15*('Ceny szkoleń'!F$8)+IF('Priorytety szkoleniowe'!G17=0,0,1*'Liczba dni szkoleń'!F17*'Ceny szkoleń'!F17)*'Ceny szkoleń'!F$8 -> 0 | H45: =IF('Planowanie szkoleń'!H$22=0,0,LOOKUP('Planowanie szkoleń'!H$22,'Ceny szkoleń'!$A$4:$A$6,'Ceny szkoleń'!G$4:G$6))*'Planowanie szkoleń'!H15*('Ceny szkoleń'!G$8)+IF('Priorytety szkoleniowe'!H17=0,0,1*'Liczba dni szkoleń'!G17*'Ceny szkoleń'!G17)*'Ceny szkoleń'!G$8 -> 0 | I45: =IF('Planowanie szkoleń'!I$22=0,0,LOOKUP('Planowanie szkoleń'!I$22,'Ceny szkoleń'!$A$4:$A$6,'Ceny szkoleń'!H$4:H$6))*'Planowanie szkoleń'!I15*('Ceny szkoleń'!H$8)+IF('Priorytety szkoleniowe'!I17=0,0,1*'Liczba dni szkoleń'!H17*'Ceny szkoleń'!H17)*'Ceny szkoleń'!H$8 -> 0 | J45: =IF('Planowanie szkoleń'!J$22=0,0,LOOKUP('Planowanie szkoleń'!J$22,'Ceny szkoleń'!$A$4:$A$6,'Ceny szkoleń'!I$4:I$6))*'Planowanie szkoleń'!J15*('Ceny szkoleń'!I$8)+IF('Priorytety szkoleniowe'!J17=0,0,1*'Liczba dni szkoleń'!I17*'Ceny szkoleń'!I17)*'Ceny szkoleń'!I$8 -> 0 | K45: =IF('Planowanie szkoleń'!K$22=0,0,LOOKUP('Planowanie szkoleń'!K$22,'Ceny szkoleń'!$A$4:$A$6,'Ceny szkoleń'!J$4:J$6))*'Planowanie szkoleń'!K15*('Ceny szkoleń'!J$8)+IF('Priorytety szkoleniowe'!K17=0,0,1*'Liczba dni szkoleń'!J17*'Ceny szkoleń'!J17)*'Ceny szkoleń'!J$8 -> 0 | L45: =IF('Planowanie szkoleń'!L$22=0,0,LOOKUP('Planowanie szkoleń'!L$22,'Ceny szkoleń'!$A$4:$A$6,'Ceny szkoleń'!K$4:K$6))*'Planowanie szkoleń'!L15*('Ceny szkoleń'!K$8)+IF('Priorytety szkoleniowe'!L17=0,0,1*'Liczba dni szkoleń'!K17*'Ceny szkoleń'!K17)*'Ceny szkoleń'!K$8 -> 0 | M45: =IF('Planowanie szkoleń'!M$22=0,0,LOOKUP('Planowanie szkoleń'!M$22,'Ceny szkoleń'!$A$4:$A$6,'Ceny szkoleń'!L$4:L$6))*'Planowanie szkoleń'!M15*('Ceny szkoleń'!L$8)+IF('Priorytety szkoleniowe'!M17=0,0,1*'Liczba dni szkoleń'!L17*'Ceny szkoleń'!L17)*'Ceny szkoleń'!L$8 -> 0 | N45: =IF('Planowanie szkoleń'!N$22=0,0,LOOKUP('Planowanie szkoleń'!N$22,'Ceny szkoleń'!$A$4:$A$6,'Ceny szkoleń'!M$4:M$6))*'Planowanie szkoleń'!N15*('Ceny szkoleń'!M$8)+IF('Priorytety szkoleniowe'!N17=0,0,1*'Liczba dni szkoleń'!M17*'Ceny szkoleń'!M17)*'Ceny szkoleń'!M$8 -> 0 | O45: =IF('Planowanie szkoleń'!O$22=0,0,LOOKUP('Planowanie szkoleń'!O$22,'Ceny szkoleń'!$A$4:$A$6,'Ceny szkoleń'!N$4:N$6))*'Planowanie szkoleń'!O15*('Ceny szkoleń'!N$8)+IF('Priorytety szkoleniowe'!O17=0,0,1*'Liczba dni szkoleń'!N17*'Ceny szkoleń'!N17)*'Ceny szkoleń'!N$8 -> 0 | P45: =SUM(G45:O45) -> 0
A46: Suma kosztów szkoleń | G46: =SUM(G41:G45) -> 0 | H46: 0 | I46: 0 | J46: 504 | K46: 0 | L46: 0 | M46: 0 | N46: 0 | O46: 0 | P46: 504

Sheet Ceny szkoleń - wykonanie
A1: Szkolenia planowane
F2: Grupa tematyczna: Prawo | I2: Grupa tematyczna: Finanse | L2: Grupa tematyczna 3
A3: Lp. | B3: Podtyp szkolenia | C3: Sposób wyliczenia ceny | F3: Prawo administracyjne | G3: Prawo finansów publicznych | H3: Prawo zamówień publicznych | I3: Audyt | J3: Controling | K3: Ekonomia | L3: Tematyka 1 | M3: Tamatyka 2 | N3: Tematyka 3
A4: 1 | B4: otwarte | C4: cena za osobodzień | F4: ='Ceny szkoleń'!F4 -> 1000 | G4: ='Ceny szkoleń'!G4 -> 1000 | H4: ='Ceny szkoleń'!H4 -> 1000 | I4: ='Ceny szkoleń'!I4 -> 200 | J4: ='Ceny szkoleń'!J4 -> 500 | K4: ='Ceny szkoleń'!K4 -> 200 | L4: ='Ceny szkoleń'!L4 -> 1000 | M4: ='Ceny szkoleń'!M4 -> 800 | N4: 750
A5: 2 | B5: zewnętrzne zamknięte | C5: cena za osobodzień | F5: ='Ceny szkoleń'!F5 -> 500 | G5: ='Ceny szkoleń'!G5 -> 500 | H5: ='Ceny szkoleń'!H5 -> 500 | I5: ='Ceny szkoleń'!I5 -> 80 | J5: ='Ceny szkoleń'!J5 -> 300 | K5: ='Ceny szkoleń'!K5 -> 80 | L5: ='Ceny szkoleń'!L5 -> 600 | M5: ='Ceny szkoleń'!M5 -> 500 | N5: ='Ceny szkoleń'!N5 -> 500
A6: 3 | B6: wewnętrzne zamknięte | C6: cena za osobodzień | F6: ='Ceny szkoleń'!F6 -> 250 | G6: ='Ceny szkoleń'!G6 -> 250 | H6: ='Ceny szkoleń'!H6 -> 200 | I6: ='Ceny szkoleń'!I6 -> 20 | J6: ='Ceny szkoleń'!J6 -> 200 | K6: ='Ceny szkoleń'!K6 -> 20 | L6: ='Ceny szkoleń'!L6 -> 50 | M6: ='Ceny szkoleń'!M6 -> 50 | N6: ='Ceny szkoleń'!N6 -> 50
A7: 4
B8: Udział pracowników w finansowaniu | C8: % | F8: 0 | G8: 0 | H8: 0 | I8: 0 | J8: 0 | K8: 0 | L8: 0.05 | M8: 0.15 | N8: 0.15

Sheet Wykonanie szkoleń ad hoc
A2: Przeprowadzone szkolenia ad hoc
D3: Jednostka organizacyjna | G3: Grupa tematyczna: Prawo | J3: Grupa tematyczna: Finanse | M3: Grupa tematyczna 3
A4: Lp. | B4: Pracownik | C4: Członek korpusu służby cywilnej tak/nie | D4: Dział | E4: Wydział | F4: Departament | G4: Prawo administracyjne | H4: Prawo finansów publicznych | I4: Prawo zamówień publicznych | J4: Audyt | K4: Controling | L4: Ekonomia | M4: Tematyka 1 | N4: Tamatyka 2 | O4: Tematyka 3
A5: 1 | B5: Jan Kowalski | C5: tak | G5: 1 | J5: 1
A6: 2 | B6: Maria Nowak | C6: tak
A7: 3 | B7: Piotr Krasinski | C7: tak
A8: 4 | C8: tak | O8: 1
A9: 5 | C9: nie
A10: SUMA | G10: =SUM(G5:G9) -> 1 | H10: 0 | I10: 0 | J10: 1 | K10: 0 | L10: 0 | M10: 0 | N10: 0 | O10: 1
A12: Liczba dni szkoleniowych ad hoc
D13: Jednostka organizacyjna | G13: Grupa tematyczna: Prawo | J13: Grupa tematyczna: Finanse | M13: Grupa tematyczna 3
A14: Lp. | B14: Pracownik | C14: Członek korpusu służby cywilnej tak/nie | D14: Dział | E14: Wydział | F14: Departament | G14: Prawo administracyjne | H14: Prawo finansów publicznych | I14: Prawo zamówień publicznych | J14: Audyt | K14: Controling | L14: Ekonomia | M14: Tematyka 1 | N14: Tamatyka 2 | O14: Tematyka 3
A15: 1 | B15: Jan Kowalski | C15: tak | G15: 1 | J15: 1
A16: 2 | B16: Maria Nowak | C16: tak
A17: 3 | B17: Piotr Krasinski | C17: tak
A18: 4 | C18: tak | O18: 3
A19: 5 | C19: nie
A20: SUMA | G20: =SUM(G15:G19) -> 1 | H20: 0 | I20: 0 | J20: 1 | K20: 0 | L20: 0 | M20: 0 | N20: 0 | O20: 3
A23: Rzeczywiste koszty przeprowadzonych szkoleń
G24: Grupa tematyczna: Prawo | J24: Grupa tematyczna: Finanse | M24: Grupa tematyczna 3
A25: Lp. | B25: Pracownik | G25: Prawo administracyjne | H25: Prawo finansów publicznych | I25: Prawo zamówień publicznych | J25: Audyt | K25: Controling | L25: Ekonomia | M25: Tematyka 1 | N25: Tamatyka 2 | O25: Tematyka 3
A26: 1 | B26: Jan Kowalski | C26: cena za osobodzień | G26: 220 | J26: 500
A27: 2 | B27: Maria Nowak | C27: cena za osobodzień
A28: 3 | B28: Piotr Krasinski | C28: cena za osobodzień
A29: 4 | C29: cena za osobodzień
A30: 5 | C30: cena za osobodzień

Sheet Wykonanie planu
C1: Grupa tematyczna: Prawo | F1: Grupa tematyczna: Finanse | I1: Grupa tematyczna 3
A2: Lp. | B2: Szkolenie | C2: Prawo administracyjne | D2: Prawo finansów publicznych | E2: Prawo zamówień publicznych | F2: Audyt | G2: Controling | H2: Ekonomia | I2: Tematyka 1 | J2: Tamatyka 2 | K2: Tematyka 3 | L2: Suma
A3: Wykonane szkolenia | N3: Bieżąca data | O3: =TODAY() -> 2012-05-21
A4: 1 | B4: szkolenie 1 | C4: =IF('Planowanie szkoleń'!G24=0,0,IF($O$5-'Planowanie szkoleń'!G23>=0,1,0)) -> 1 | D4: =IF('Planowanie szkoleń'!H24=0,0,IF($O$5-'Planowanie szkoleń'!H23>=0,1,0)) -> 1 | E4: =IF('Planowanie szkoleń'!I24=0,0,IF($O$5-'Planowanie szkoleń'!I23>=0,1,0)) -> 1 | F4: =IF('Planowanie szkoleń'!J24=0,0,IF($O$5-'Planowanie szkoleń'!J23>=0,1,0)) -> 1 | G4: =IF('Planowanie szkoleń'!K24=0,0,IF($O$5-'Planowanie szkoleń'!K23>=0,1,0)) -> 0 | H4: =IF('Planowanie szkoleń'!L24=0,0,IF($O$5-'Planowanie szkoleń'!L23>=0,1,0)) -> 0 | I4: =IF('Planowanie szkoleń'!M24=0,0,IF($O$5-'Planowanie szkoleń'!M23>=0,1,0)) -> 0 | J4: =IF('Planowanie szkoleń'!N24=0,0,IF($O$5-'Planowanie szkoleń'!N23>=0,1,0)) -> 0 | K4: =IF('Planowanie szkoleń'!O24=0,0,IF($O$5-'Planowanie szkoleń'!O23>=0,1,0)) -> 1 | L4: =SUM(C4:K4) -> 5 | N4: Początek roku | O4: 2012-01-01
A5: 2 | B5: szkolenie 2 | C5: =IF('Planowanie szkoleń'!G25=0,0,IF($O$5-'Planowanie szkoleń'!G25>=0,1,0)) -> 0 | D5: =IF('Planowanie szkoleń'!H25=0,0,IF($O$5-'Planowanie szkoleń'!H25>=0,1,0)) -> 0 | E5: =IF('Planowanie szkoleń'!I25=0,0,IF($O$5-'Planowanie szkoleń'!I25>=0,1,0)) -> 0 | F5: =IF('Planowanie szkoleń'!J25=0,0,IF($O$5-'Planowanie szkoleń'!J25>=0,1,0)) -> 0 | G5: =IF('Planowanie szkoleń'!K25=0,0,IF($O$5-'Planowanie szkoleń'!K25>=0,1,0)) -> 0 | H5: =IF('Planowanie szkoleń'!L25=0,0,IF($O$5-'Planowanie szkoleń'!L25>=0,1,0)) -> 0 | I5: =IF('Planowanie szkoleń'!M25=0,0,IF($O$5-'Planowanie szkoleń'!M25>=0,1,0)) -> 0 | J5: =IF('Planowanie szkoleń'!N25=0,0,IF($O$5-'Planowanie szkoleń'!N25>=0,1,0)) -> 0 | K5: =IF('Planowanie szkoleń'!O25=0,0,IF($O$5-'Planowanie szkoleń'!O25>=0,1,0)) -> 0 | L5: 0 | N5: miesiąc | O5: =CEILING((O3-O4)/30,1) -> 5
A6: 3 | B6: szkolenie 3 | C6: =IF('Planowanie szkoleń'!G27=0,0,IF($O$5-'Planowanie szkoleń'!G27>=0,1,0)) -> 0 | D6: =IF('Planowanie szkoleń'!H27=0,0,IF($O$5-'Planowanie szkoleń'!H27>=0,1,0)) -> 0 | E6: =IF('Planowanie szkoleń'!I27=0,0,IF($O$5-'Planowanie szkoleń'!I27>=0,1,0)) -> 0 | F6: =IF('Planowanie szkoleń'!J27=0,0,IF($O$5-'Planowanie szkoleń'!J27>=0,1,0)) -> 0 | G6: =IF('Planowanie szkoleń'!K27=0,0,IF($O$5-'Planowanie szkoleń'!K27>=0,1,0)) -> 0 | H6: =IF('Planowanie szkoleń'!L27=0,0,IF($O$5-'Planowanie szkoleń'!L27>=0,1,0)) -> 0 | I6: =IF('Planowanie szkoleń'!M27=0,0,IF($O$5-'Planowanie szkoleń'!M27>=0,1,0)) -> 0 | J6: =IF('Planowanie szkoleń'!N27=0,0,IF($O$5-'Planowanie szkoleń'!N27>=0,1,0)) -> 0 | K6: =IF('Planowanie szkoleń'!O27=0,0,IF($O$5-'Planowanie szkoleń'!O27>=0,1,0)) -> 0 | L6: 0
A7: 4 | L7: 0
A8: 5 | L8: 0
B9: Szkolenia ad hoc | C9: ='Wykonanie szkoleń ad hoc'!G10 -> 1 | D9: ='Wykonanie szkoleń ad hoc'!H10 -> 0 | E9: ='Wykonanie szkoleń ad hoc'!I10 -> 0 | F9: ='Wykonanie szkoleń ad hoc'!J10 -> 1 | G9: ='Wykonanie szkoleń ad hoc'!K10 -> 0 | H9: ='Wykonanie szkoleń ad hoc'!L10 -> 0 | I9: ='Wykonanie szkoleń ad hoc'!M10 -> 0 | J9: ='Wykonanie szkoleń ad hoc'!N10 -> 0 | K9: ='Wykonanie szkoleń ad hoc'!O10 -> 1 | L9: 3
A10: Liczba zrealizowanych szkoleń | C10: =SUM(C4:C9) -> 2 | D10: =SUM(D4:D9) -> 1 | E10: 1 | F10: 2 | G10: 0 | H10: 0 | I10: 0 | J10: 0 | K10: 2 | L10: =SUM(L4:L9) -> 8
A12: Liczba przeszkolonych osób
A13: 1 | B13: szkolenie 1 | C13: =IF('Planowanie szkoleń'!G$21=0,0,C4*'Planowanie szkoleń'!G23) -> 3 | D13: =IF('Planowanie szkoleń'!H$21=0,0,D4*'Planowanie szkoleń'!H23) -> 1 | E13: =IF('Planowanie szkoleń'!I$21=0,0,E4*'Planowanie szkoleń'!I23) -> 2 | F13: =IF('Planowanie szkoleń'!J$21=0,0,F4*'Planowanie szkoleń'!J23) -> 3 | G13: =IF('Planowanie szkoleń'!K$21=0,0,G4*'Planowanie szkoleń'!K23) -> 0 | H13: =IF('Planowanie szkoleń'!L$21=0,0,H4*'Planowanie szkoleń'!L23) -> 0 | I13: =IF('Planowanie szkoleń'!M$21=0,0,I4*'Planowanie szkoleń'!M23) -> 0 | J13: =IF('Planowanie szkoleń'!N$21=0,0,J4*'Planowanie szkoleń'!N23) -> 0 | K13: =IF('Planowanie szkoleń'!O$21=0,0,K4*'Planowanie szkoleń'!O23) -> 1 | L13: =SUM(C13:K13) -> 10
A14: 2 | B14: szkolenie 2 | C14: =IF('Planowanie szkoleń'!G$21=0,0,C5*'Planowanie szkoleń'!G25) -> 0 | D14: =IF('Planowanie szkoleń'!H$21=0,0,D5*'Planowanie szkoleń'!H25) -> 0 | E14: =IF('Planowanie szkoleń'!I$21=0,0,E5*'Planowanie szkoleń'!I25) -> 0 | F14: =IF('Planowanie szkoleń'!J$21=0,0,F5*'Planowanie szkoleń'!J25) -> 0 | G14: =IF('Planowanie szkoleń'!K$21=0,0,G5*'Planowanie szkoleń'!K25) -> 0 | H14: =IF('Planowanie szkoleń'!L$21=0,0,H5*'Planowanie szkoleń'!L25) -> 0 | I14: =IF('Planowanie szkoleń'!M$21=0,0,I5*'Planowanie szkoleń'!M25) -> 0 | J14: =IF('Planowanie szkoleń'!N$21=0,0,J5*'Planowanie szkoleń'!N25) -> 0 | K14: =IF('Planowanie szkoleń'!O$21=0,0,K5*'Planowanie szkoleń'!O25) -> 0 | L14: 0
A15: 3 | B15: szkolenie 3 | C15: =IF('Planowanie szkoleń'!G$21=0,0,C6*'Planowanie szkoleń'!G27) -> 0 | D15: =IF('Planowanie szkoleń'!H$21=0,0,D6*'Planowanie szkoleń'!H27) -> 0 | E15: =IF('Planowanie szkoleń'!I$21=0,0,E6*'Planowanie szkoleń'!I27) -> 0 | F15: =IF('Planowanie szkoleń'!J$21=0,0,F6*'Planowanie szkoleń'!J27) -> 0 | G15: =IF('Planowanie szkoleń'!K$21=0,0,G6*'Planowanie szkoleń'!K27) -> 0 | H15: =IF('Planowanie szkoleń'!L$21=0,0,H6*'Planowanie szkoleń'!L27) -> 0 | I15: =IF('Planowanie szkoleń'!M$21=0,0,I6*'Planowanie szkoleń'!M27) -> 0 | J15: =IF('Planowanie szkoleń'!N$21=0,0,J6*'Planowanie szkoleń'!N27) -> 0 | K15: =IF('Planowanie szkoleń'!O$21=0,0,K6*'Planowanie szkoleń'!O27) -> 0 | L15: 0
A16: 4 | L16: 0
A17: 5 | L17: 0
B18: Szkolenia ad hoc | C18: =C9 -> 1 | D18: =D9 -> 0 | E18: 0 | F18: 1 | G18: 0 | H18: 0 | I18: 0 | J18: 0 | K18: 1 | L18: 3
A19: Suma | C19: =SUM(C13:C18) -> 4 | D19: 1 | E19: 2 | F19: 4 | G19: 0 | H19: 0 | I19: 0 | J19: 0 | K19: =SUM(K13:K18) -> 2 | L19: =SUM(L13:L18) -> 13
A21: Zrealizowane osobodni szkoleniowe
A22: 1 | B22: szkolenie 1 | C22: =IF('Planowanie szkoleń'!G23=0,0,C4*'Planowanie szkoleń'!G$18/'Planowanie szkoleń'!G$21) -> 4 | D22: =IF('Planowanie szkoleń'!H23=0,0,D4*'Planowanie szkoleń'!H$18/'Planowanie szkoleń'!H$21) -> 4 | E22: =IF('Planowanie szkoleń'!I23=0,0,E4*'Planowanie szkoleń'!I$18/'Planowanie szkoleń'!I$21) -> 10 | F22: =IF('Planowanie szkoleń'!J23=0,0,F4*'Planowanie szkoleń'!J$18/'Planowanie szkoleń'!J$21) -> 9 | G22: =IF('Planowanie szkoleń'!K23=0,0,G4*'Planowanie szkoleń'!K$18/'Planowanie szkoleń'!K$21) -> 0 | H22: =IF('Planowanie szkoleń'!L23=0,0,H4*'Planowanie szkoleń'!L$18/'Planowanie szkoleń'!L$21) -> 0 | I22: =IF('Planowanie szkoleń'!M23=0,0,I4*'Planowanie szkoleń'!M$18/'Planowanie szkoleń'!M$21) -> 0 | J22: =IF('Planowanie szkoleń'!N23=0,0,J4*'Planowanie szkoleń'!N$18/'Planowanie szkoleń'!N$21) -> 0 | K22: =IF('Planowanie szkoleń'!O23=0,0,K4*'Planowanie szkoleń'!O$18/'Planowanie szkoleń'!O$21) -> 10 | L22: =SUM(C22:K22) -> 37
A23: 2 | B23: szkolenie 2 | C23: =IF('Planowanie szkoleń'!G25=0,0,C5*'Planowanie szkoleń'!G$18/'Planowanie szkoleń'!G$21) -> 0 | D23: =IF('Planowanie szkoleń'!H25=0,0,D5*'Planowanie szkoleń'!H$18/'Planowanie szkoleń'!H$21) -> 0 | E23: =IF('Planowanie szkoleń'!I25=0,0,E5*'Planowanie szkoleń'!I$18/'Planowanie szkoleń'!I$21) -> 0 | F23: =IF('Planowanie szkoleń'!J25=0,0,F5*'Planowanie szkoleń'!J$18/'Planowanie szkoleń'!J$21) -> 0 | G23: =IF('Planowanie szkoleń'!K25=0,0,G5*'Planowanie szkoleń'!K$18/'Planowanie szkoleń'!K$21) -> 0 | H23: =IF('Planowanie szkoleń'!L25=0,0,H5*'Planowanie szkoleń'!L$18/'Planowanie szkoleń'!L$21) -> 0 | I23: =IF('Planowanie szkoleń'!M25=0,0,I5*'Planowanie szkoleń'!M$18/'Planowanie szkoleń'!M$21) -> 0 | J23: =IF('Planowanie szkoleń'!N25=0,0,J5*'Planowanie szkoleń'!N$18/'Planowanie szkoleń'!N$21) -> 0 | K23: =IF('Planowanie szkoleń'!O25=0,0,K5*'Planowanie szkoleń'!O$18/'Planowanie szkoleń'!O$21) -> 0 | L23: 0
A24: 3 | B24: szkolenie 3 | C24: =IF('Planowanie szkoleń'!G27=0,0,C6*'Planowanie szkoleń'!G$18/'Planowanie szkoleń'!G$21) -> 0 | D24: =IF('Planowanie szkoleń'!H27=0,0,D6*'Planowanie szkoleń'!H$18/'Planowanie szkoleń'!H$21) -> 0 | E24: =IF('Planowanie szkoleń'!I27=0,0,E6*'Planowanie szkoleń'!I$18/'Planowanie szkoleń'!I$21) -> 0 | F24: =IF('Planowanie szkoleń'!J27=0,0,F6*'Planowanie szkoleń'!J$18/'Planowanie szkoleń'!J$21) -> 0 | G24: =IF('Planowanie szkoleń'!K27=0,0,G6*'Planowanie szkoleń'!K$18/'Planowanie szkoleń'!K$21) -> 0 | H24: =IF('Planowanie szkoleń'!L27=0,0,H6*'Planowanie szkoleń'!L$18/'Planowanie szkoleń'!L$21) -> 0 | I24: =IF('Planowanie szkoleń'!M27=0,0,I6*'Planowanie szkoleń'!M$18/'Planowanie szkoleń'!M$21) -> 0 | J24: =IF('Planowanie szkoleń'!N27=0,0,J6*'Planowanie szkoleń'!N$18/'Planowanie szkoleń'!N$21) -> 0 | K24: =IF('Planowanie szkoleń'!O27=0,0,K6*'Planowanie szkoleń'!O$18/'Planowanie szkoleń'!O$21) -> 0 | L24: 0
A25: 4 | L25: 0
A26: 5 | L26: 0
B27: Szkolenia ad hoc | C27: ='Wykonanie szkoleń ad hoc'!G20 -> 1 | D27: ='Wykonanie szkoleń ad hoc'!H20 -> 0 | E27: ='Wykonanie szkoleń ad hoc'!I20 -> 0 | F27: ='Wykonanie szkoleń ad hoc'!J20 -> 1 | G27: ='Wykonanie szkoleń ad hoc'!K20 -> 0 | H27: ='Wykonanie szkoleń ad hoc'!L20 -> 0 | I27: ='Wykonanie szkoleń ad hoc'!M20 -> 0 | J27: ='Wykonanie szkoleń ad hoc'!N20 -> 0 | K27: ='Wykonanie szkoleń ad hoc'!O20 -> 3 | L27: 5
A28: Suma | C28: =SUM(C22:C27) -> 5 | D28: =SUM(D22:D27) -> 4 | E28: 10 | F28: 10 | G28: 0 | H28: 0 | I28: 0 | J28: 0 | K28: 13 | L28: =SUM(L22:L26) -> 37
A30: Zrealizowane koszty szkoleń
A31: 1 | B31: szkolenie 1 | C31: =IF('Planowanie szkoleń'!G$22=0,0,LOOKUP('Planowanie szkoleń'!G$22,'Ceny szkoleń - wykonanie'!$A$4:$A$6,'Ceny szkoleń - wykonanie'!F4:F6))*C22*(1-'Ceny szkoleń - wykonanie'!F$8) -> 4000 | D31: =IF('Planowanie szkoleń'!H$22=0,0,LOOKUP('Planowanie szkoleń'!H$22,'Ceny szkoleń - wykonanie'!$A$4:$A$6,'Ceny szkoleń - wykonanie'!G4:G6))*D22*(1-'Ceny szkoleń - wykonanie'!G$8) -> 2000 | E31: =IF('Planowanie szkoleń'!I$22=0,0,LOOKUP('Planowanie szkoleń'!I$22,'Ceny szkoleń - wykonanie'!$A$4:$A$6,'Ceny szkoleń - wykonanie'!H4:H6))*E22*(1-'Ceny szkoleń - wykonanie'!H$8) -> 10000 | F31: =IF('Planowanie szkoleń'!J$22=0,0,LOOKUP('Planowanie szkoleń'!J$22,'Ceny szkoleń - wykonanie'!$A$4:$A$6,'Ceny szkoleń - wykonanie'!I4:I6))*F22*(1-'Ceny szkoleń - wykonanie'!I$8) -> 180 | G31: =IF('Planowanie szkoleń'!K$22=0,0,LOOKUP('Planowanie szkoleń'!K$22,'Ceny szkoleń - wykonanie'!$A$4:$A$6,'Ceny szkoleń - wykonanie'!J4:J6))*G22*(1-'Ceny szkoleń - wykonanie'!J$8) -> 0 | H31: =IF('Planowanie szkoleń'!L$22=0,0,LOOKUP('Planowanie szkoleń'!L$22,'Ceny szkoleń - wykonanie'!$A$4:$A$6,'Ceny szkoleń - wykonanie'!K4:K6))*H22*(1-'Ceny szkoleń - wykonanie'!K$8) -> 0 | I31: =IF('Planowanie szkoleń'!M$22=0,0,LOOKUP('Planowanie szkoleń'!M$22,'Ceny szkoleń - wykonanie'!$A$4:$A$6,'Ceny szkoleń - wykonanie'!L4:L6))*I22*(1-'Ceny szkoleń - wykonanie'!L$8) -> 0 | J31: =IF('Planowanie szkoleń'!N$22=0,0,LOOKUP('Planowanie szkoleń'!N$22,'Ceny szkoleń - wykonanie'!$A$4:$A$6,'Ceny szkoleń - wykonanie'!M4:M6))*J22*(1-'Ceny szkoleń - wykonanie'!M$8) -> 0 | K31: =IF('Planowanie szkoleń'!O$22=0,0,LOOKUP('Planowanie szkoleń'!O$22,'Ceny szkoleń - wykonanie'!$A$4:$A$6,'Ceny szkoleń - wykonanie'!N4:N6))*K22*(1-'Ceny szkoleń - wykonanie'!N$8) -> 425 | L31: =SUM(C31:K31) -> 16605
A32: 2 | B32: szkolenie 2 | C32: =IF('Planowanie szkoleń'!G$22=0,0,LOOKUP('Planowanie szkoleń'!G$22,'Ceny szkoleń - wykonanie'!$A$4:$A$6,'Ceny szkoleń - wykonanie'!F5:F7))*C23*(1-'Ceny szkoleń - wykonanie'!F$8) -> 0 | D32: =IF('Planowanie szkoleń'!H$22=0,0,LOOKUP('Planowanie szkoleń'!H$22,'Ceny szkoleń - wykonanie'!$A$4:$A$6,'Ceny szkoleń - wykonanie'!G5:G7))*D23*(1-'Ceny szkoleń - wykonanie'!G$8) -> 0 | E32: =IF('Planowanie szkoleń'!I$22=0,0,LOOKUP('Planowanie szkoleń'!I$22,'Ceny szkoleń - wykonanie'!$A$4:$A$6,'Ceny szkoleń - wykonanie'!H5:H7))*E23*(1-'Ceny szkoleń - wykonanie'!H$8) -> 0 | F32: =IF('Planowanie szkoleń'!J$22=0,0,LOOKUP('Planowanie szkoleń'!J$22,'Ceny szkoleń - wykonanie'!$A$4:$A$6,'Ceny szkoleń - wykonanie'!I5:I7))*F23*(1-'Ceny szkoleń - wykonanie'!I$8) -> 0 | G32: =IF('Planowanie szkoleń'!K$22=0,0,LOOKUP('Planowanie szkoleń'!K$22,'Ceny szkoleń - wykonanie'!$A$4:$A$6,'Ceny szkoleń - wykonanie'!J5:J7))*G23*(1-'Ceny szkoleń - wykonanie'!J$8) -> 0 | H32: =IF('Planowanie szkoleń'!L$22=0,0,LOOKUP('Planowanie szkoleń'!L$22,'Ceny szkoleń - wykonanie'!$A$4:$A$6,'Ceny szkoleń - wykonanie'!K5:K7))*H23*(1-'Ceny szkoleń - wykonanie'!K$8) -> 0 | I32: =IF('Planowanie szkoleń'!M$22=0,0,LOOKUP('Planowanie szkoleń'!M$22,'Ceny szkoleń - wykonanie'!$A$4:$A$6,'Ceny szkoleń - wykonanie'!L5:L7))*I23*(1-'Ceny szkoleń - wykonanie'!L$8) -> 0 | J32: =IF('Planowanie szkoleń'!N$22=0,0,LOOKUP('Planowanie szkoleń'!N$22,'Ceny szkoleń - wykonanie'!$A$4:$A$6,'Ceny szkoleń - wykonanie'!M5:M7))*J23*(1-'Ceny szkoleń - wykonanie'!M$8) -> 0 | K32: =IF('Planowanie szkoleń'!O$22=0,0,LOOKUP('Planowanie szkoleń'!O$22,'Ceny szkoleń - wykonanie'!$A$4:$A$6,'Ceny szkoleń - wykonanie'!N5:N7))*K23*(1-'Ceny szkoleń - wykonanie'!N$8) -> 0 | L32: 0
A33: 3 | B33: szkolenie 3 | C33: =IF('Planowanie szkoleń'!G$22=0,0,LOOKUP('Planowanie szkoleń'!G$22,'Ceny szkoleń - wykonanie'!$A$4:$A$6,'Ceny szkoleń - wykonanie'!F6:F8))*C24*(1-'Ceny szkoleń - wykonanie'!F$8) -> 0 | D33: =IF('Planowanie szkoleń'!H$22=0,0,LOOKUP('Planowanie szkoleń'!H$22,'Ceny szkoleń - wykonanie'!$A$4:$A$6,'Ceny szkoleń - wykonanie'!G6:G8))*D24*(1-'Ceny szkoleń - wykonanie'!G$8) -> 0 | E33: =IF('Planowanie szkoleń'!I$22=0,0,LOOKUP('Planowanie szkoleń'!I$22,'Ceny szkoleń - wykonanie'!$A$4:$A$6,'Ceny szkoleń - wykonanie'!H6:H8))*E24*(1-'Ceny szkoleń - wykonanie'!H$8) -> 0 | F33: =IF('Planowanie szkoleń'!J$22=0,0,LOOKUP('Planowanie szkoleń'!J$22,'Ceny szkoleń - wykonanie'!$A$4:$A$6,'Ceny szkoleń - wykonanie'!I6:I8))*F24*(1-'Ceny szkoleń - wykonanie'!I$8) -> 0 | G33: =IF('Planowanie szkoleń'!K$22=0,0,LOOKUP('Planowanie szkoleń'!K$22,'Ceny szkoleń - wykonanie'!$A$4:$A$6,'Ceny szkoleń - wykonanie'!J6:J8))*G24*(1-'Ceny szkoleń - wykonanie'!J$8) -> 0 | H33: =IF('Planowanie szkoleń'!L$22=0,0,LOOKUP('Planowanie szkoleń'!L$22,'Ceny szkoleń - wykonanie'!$A$4:$A$6,'Ceny szkoleń - wykonanie'!K6:K8))*H24*(1-'Ceny szkoleń - wykonanie'!K$8) -> 0 | I33: =IF('Planowanie szkoleń'!M$22=0,0,LOOKUP('Planowanie szkoleń'!M$22,'Ceny szkoleń - wykonanie'!$A$4:$A$6,'Ceny szkoleń - wykonanie'!L6:L8))*I24*(1-'Ceny szkoleń - wykonanie'!L$8) -> 0 | J33: =IF('Planowanie szkoleń'!N$22=0,0,LOOKUP('Planowanie szkoleń'!N$22,'Ceny szkoleń - wykonanie'!$A$4:$A$6,'Ceny szkoleń - wykonanie'!M6:M8))*J24*(1-'Ceny szkoleń - wykonanie'!M$8) -> 0 | K33: =IF('Planowanie szkoleń'!O$22=0,0,LOOKUP('Planowanie szkoleń'!O$22,'Ceny szkoleń - wykonanie'!$A$4:$A$6,'Ceny szkoleń - wykonanie'!N6:N8))*K24*(1-'Ceny szkoleń - wykonanie'!N$8) -> 0 | L33: 0
A34: 4 | L34: 0
A35: 5 | L35: 0
B36: Szkolenia ad hoc | C36: =SUMPRODUCT('Wykonanie szkoleń ad hoc'!G15:G19,'Wykonanie szkoleń ad hoc'!G26:G30) -> 220 | D36: =SUMPRODUCT('Wykonanie szkoleń ad hoc'!H15:H19,'Wykonanie szkoleń ad hoc'!H26:H30) -> 0 | E36: =SUMPRODUCT('Wykonanie szkoleń ad hoc'!I15:I19,'Wykonanie szkoleń ad hoc'!I26:I30) -> 0 | F36: =SUMPRODUCT('Wykonanie szkoleń ad hoc'!J15:J19,'Wykonanie szkoleń ad hoc'!J26:J30) -> 500 | G36: =SUMPRODUCT('Wykonanie szkoleń ad hoc'!K15:K19,'Wykonanie szkoleń ad hoc'!K26:K30) -> 0 | H36: =SUMPRODUCT('Wykonanie szkoleń ad hoc'!L15:L19,'Wykonanie szkoleń ad hoc'!L26:L30) -> 0 | I36: =SUMPRODUCT('Wykonanie szkoleń ad hoc'!M15:M19,'Wykonanie szkoleń ad hoc'!M26:M30) -> 0 | J36: =SUMPRODUCT('Wykonanie szkoleń ad hoc'!N15:N19,'Wykonanie szkoleń ad hoc'!N26:N30) -> 0 | K36: =SUMPRODUCT('Wykonanie szkoleń ad hoc'!O15:O19,'Wykonanie szkoleń ad hoc'!O26:O30) -> 0 | L36: 720
A37: Suma | C37: =SUM(C31:C36) -> 4220 | D37: =SUM(D31:D36) -> 2000 | E37: 10000 | F37: 680 | G37: 0 | H37: 0 | I37: 0 | J37: 0 | K37: 425 | L37: =SUM(L31:L36) -> 17325
A39: % wykonania planu
A40: Suma | C40: =IF(C37=0,0,C37/'Koszty szkoleń'!G29) -> 0.9483146067 | D40: =IF(D37=0,0,D37/'Koszty szkoleń'!H29) -> 1 | E40: =IF(E37=0,0,E37/'Koszty szkoleń'!I29) -> 1 | F40: =IF(F37=0,0,F37/'Koszty szkoleń'!J29) -> 0.5782312925 | G40: =IF(G37=0,0,G37/'Koszty szkoleń'!K29) -> 0 | H40: =IF(H37=0,0,H37/'Koszty szkoleń'!L29) -> 0 | I40: =IF(I37=0,0,I37/'Koszty szkoleń'!M29) -> 0 | J40: =IF(J37=0,0,J37/'Koszty szkoleń'!N29) -> 0 | K40: =IF(K37=0,0,K37/'Koszty szkoleń'!O29) -> 0.85 | L40: =IF('Koszty szkoleń'!P9=0,0,'Wykonanie planu'!L37/'Koszty szkoleń'!P9) -> 0.8964607265
B42: % wykonania budżetu | C42: =L37/'Koszty szkoleń'!E11 -> 0.3465
B43: Środki pozostałe do wykorzystania ogółem | C43: ='Koszty szkoleń'!E11-'Wykonanie planu'!L37 -> 32675
